Workbook

Sheet Window Film
A1: =IF(G9="","",IF(G9="ID",2,IF(OR(G9="WA",G9="CA"),1,3))) -> 
D2: Window Film Calculator | S2: Version: | AP2: Glazing | AQ2: Glass Tint | AT2: Low E | AU2: Film
S3: 071116.1 | W3: 1 | X3: ID | Y3: RMP | Z3: Rate Lookups | AB3: Simplified Rate Table For FinAnswer Express | AE3: Ashrea 1997 Fundamentals | AF3: N | AG3: NE | AH3: E | AI3: SE | AJ3: S | AK3: SW | AL3: W | AM3: NW | AN3: ADLH | AP3: =IF($R$6="","",$R$6) ->  | AQ3: =IF(OR($AP$3="",$R$7=""),"",VLOOKUP($R$7,$AR$4:$AS$10,2,0)) ->  | AT3: =IF(OR($Q$8="",$AQ$3=""),"",$Q$8) ->  | AU3: =IF(#REF!="","",VLOOKUP(#REF!,$AU$4:$AV$12,2,0)) -> 
B4: Date | E4: =IF(AND(G9="",C4=""),"Please enter the date the window film was purchased.",IF(InstallState="","Please enter the state where the window film was installed.",IF(C4<VLOOKUP(InstallState,TariffDates,3,FALSE),"This tool calculates incentives for window film purchased on or after "&VLOOKUP(InstallState,TariffDates,2,FALSE)&". Please contact us for assistance with installations prior to "&VLOOKUP(InstallState,TariffDates,2,FALSE)&".","Calculations are in accordance with Tariff 140"&" effective "&VLOOKUP(G9,TariffDates,2,FALSE)))) -> Please enter the date the window film was purchased. | Q4: Project # | W4: 2 | X4: UT | AE4: Summer Irradiance (btu/hr/ft^2) | AF4: =OFFSET(Irradiance!$D$4,MATCH($L$6,Irradiance!$C$4:$C$14,0)-1,MATCH('Window Film'!AF$3,Irradiance!$D$2:$AA$2,0)-1) ->  | AG4: =OFFSET(Irradiance!$D$4,MATCH($L$6,Irradiance!$C$4:$C$14,0)-1,MATCH('Window Film'!AG$3,Irradiance!$D$2:$AA$2,0)-1) ->  | AH4: =OFFSET(Irradiance!$D$4,MATCH($L$6,Irradiance!$C$4:$C$14,0)-1,MATCH('Window Film'!AH$3,Irradiance!$D$2:$AA$2,0)-1) ->  | AI4: =OFFSET(Irradiance!$D$4,MATCH($L$6,Irradiance!$C$4:$C$14,0)-1,MATCH('Window Film'!AI$3,Irradiance!$D$2:$AA$2,0)-1) ->  | AJ4: =OFFSET(Irradiance!$D$4,MATCH($L$6,Irradiance!$C$4:$C$14,0)-1,MATCH('Window Film'!AJ$3,Irradiance!$D$2:$AA$2,0)-1) ->  | AK4: =OFFSET(Irradiance!$D$4,MATCH($L$6,Irradiance!$C$4:$C$14,0)-1,MATCH('Window Film'!AK$3,Irradiance!$D$2:$AA$2,0)-1) ->  | AL4: =OFFSET(Irradiance!$D$4,MATCH($L$6,Irradiance!$C$4:$C$14,0)-1,MATCH('Window Film'!AL$3,Irradiance!$D$2:$AA$2,0)-1) ->  | AM4: =OFFSET(Irradiance!$D$4,MATCH($L$6,Irradiance!$C$4:$C$14,0)-1,MATCH('Window Film'!AM$3,Irradiance!$D$2:$AA$2,0)-1) ->  | AN4: =OFFSET(Irradiance!$D$4,MATCH($L$6,Irradiance!$C$4:$C$14,0)-1,MATCH('Window Film'!AN$3,Irradiance!$D$2:$AB$2,0)-1) ->  | AO4: 1 | AP4: Single 1/8" Glass | AQ4: =IF(ISERROR(VLOOKUP(SMALL('Ref Tables'!$G$3:$G$75,'Window Film'!$AO4),'Ref Tables'!$G$3:$H$75,2,0)),"",VLOOKUP(SMALL('Ref Tables'!$G$3:$G$75,'Window Film'!$AO4),'Ref Tables'!$G$3:$H$75,2,0)) -> CLR | AR4: =IF(AQ4="","",VLOOKUP(AQ4,'Ref Tables'!$C$1:$D$7,2,0)) -> Clear | AS4: =AQ4 -> CLR | AT4: =IF(ISERROR(VLOOKUP(SMALL('Ref Tables'!$I$3:$I$75,'Window Film'!AO4),'Ref Tables'!$I$3:$J$75,2,0)),"",VLOOKUP(SMALL('Ref Tables'!$I$3:$I$75,'Window Film'!AO4),'Ref Tables'!$I$3:$J$75,2,0)) -> Uncoated | AU4: Stainless Steel 8% | AV4: ='Ref Tables'!#REF! ->  | AW4: AC
B5: Project/Customer Information | H5: =IF(OR(G9="",I11=""),FALSE,"") -> FALSE | K5: Project Information | Q5: =IF(AF7=0,"Invalid Window Type","") -> Invalid Window Type | W5: 3 | X5: WY | AE5: Winter Irradiance (btu/hr/ft^2) | AF5: =OFFSET(Irradiance!$D$15,MATCH($L$6,Irradiance!$C$15:$C$25,0)-1,MATCH('Window Film'!AF$3,Irradiance!$D$2:$AA$2,0)-1) ->  | AG5: =OFFSET(Irradiance!$D$15,MATCH($L$6,Irradiance!$C$15:$C$25,0)-1,MATCH('Window Film'!AG$3,Irradiance!$D$2:$AA$2,0)-1) ->  | AH5: =OFFSET(Irradiance!$D$15,MATCH($L$6,Irradiance!$C$15:$C$25,0)-1,MATCH('Window Film'!AH$3,Irradiance!$D$2:$AA$2,0)-1) ->  | AI5: =OFFSET(Irradiance!$D$15,MATCH($L$6,Irradiance!$C$15:$C$25,0)-1,MATCH('Window Film'!AI$3,Irradiance!$D$2:$AA$2,0)-1) ->  | AJ5: =OFFSET(Irradiance!$D$15,MATCH($L$6,Irradiance!$C$15:$C$25,0)-1,MATCH('Window Film'!AJ$3,Irradiance!$D$2:$AA$2,0)-1) ->  | AK5: =OFFSET(Irradiance!$D$15,MATCH($L$6,Irradiance!$C$15:$C$25,0)-1,MATCH('Window Film'!AK$3,Irradiance!$D$2:$AA$2,0)-1) ->  | AL5: =OFFSET(Irradiance!$D$15,MATCH($L$6,Irradiance!$C$15:$C$25,0)-1,MATCH('Window Film'!AL$3,Irradiance!$D$2:$AA$2,0)-1) ->  | AM5: =OFFSET(Irradiance!$D$15,MATCH($L$6,Irradiance!$C$15:$C$25,0)-1,MATCH('Window Film'!AM$3,Irradiance!$D$2:$AA$2,0)-1) ->  | AN5: =OFFSET(Irradiance!$D$15,MATCH($L$6,Irradiance!$C$15:$C$25,0)-1,MATCH('Window Film'!AN$3,Irradiance!$D$2:$AB$2,0)-1) ->  | AO5: 2 | AP5: Single 1/4" Glass | AQ5: =IF(ISERROR(VLOOKUP(SMALL('Ref Tables'!$G$3:$G$75,'Window Film'!$AO5),'Ref Tables'!$G$3:$H$75,2,0)),"",VLOOKUP(SMALL('Ref Tables'!$G$3:$G$75,'Window Film'!$AO5),'Ref Tables'!$G$3:$H$75,2,0)) -> BRZ | AR5: =IF(AQ5="","",VLOOKUP(AQ5,'Ref Tables'!$C$1:$D$7,2,0)) -> Bronze | AS5: =AQ5 -> BRZ | AT5: =IF(ISERROR(VLOOKUP(SMALL('Ref Tables'!$I$3:$I$75,'Window Film'!AO5),'Ref Tables'!$I$3:$J$75,2,0)),"",VLOOKUP(SMALL('Ref Tables'!$I$3:$I$75,'Window Film'!AO5),'Ref Tables'!$I$3:$J$75,2,0)) -> Low-E(.2) on surface 2 | AU5: Stainless Steel 14% | AV5: ='Ref Tables'!#REF! ->  | AW5: Evaporative Cooler or IDEC
B6: Project Name | K6: City | Q6: Glazing | W6: 4 | X6: CA | Y6: PP | AB6: Updated October 14, 2014 Ave Secondary rates except where noted | AO6: 3 | AP6: Double 1/8" Glass | AQ6: =IF(ISERROR(VLOOKUP(SMALL('Ref Tables'!$G$3:$G$75,'Window Film'!$AO6),'Ref Tables'!$G$3:$H$75,2,0)),"",VLOOKUP(SMALL('Ref Tables'!$G$3:$G$75,'Window Film'!$AO6),'Ref Tables'!$G$3:$H$75,2,0)) -> GRN | AR6: =IF(AQ6="","",VLOOKUP(AQ6,'Ref Tables'!$C$1:$D$7,2,0)) -> Green | AS6: GRN | AT6: =IF(ISERROR(VLOOKUP(SMALL('Ref Tables'!$I$3:$I$75,'Window Film'!AO6),'Ref Tables'!$I$3:$J$75,2,0)),"",VLOOKUP(SMALL('Ref Tables'!$I$3:$I$75,'Window Film'!AO6),'Ref Tables'!$I$3:$J$75,2,0)) -> Low-E(.2) on surface 3 | AU6: Stainless Steel 20% | AV6: ='Ref Tables'!#REF! ->  | AW6: Chilled Water (Water Cooled)
B7: Business Name | K7: Cooling | Q7: Glass Tint | W7: 5 | X7: WA | AE7: SHGC Existing Windows | AF7: =IF(ISERROR(MAX('Ref Tables'!$E$3:$E$75)),0,MAX('Ref Tables'!$E$3:$E$75)) -> 0 | AO7: 4 | AP7: Double 1/4" Glass | AQ7: =IF(ISERROR(VLOOKUP(SMALL('Ref Tables'!$G$3:$G$75,'Window Film'!$AO7),'Ref Tables'!$G$3:$H$75,2,0)),"",VLOOKUP(SMALL('Ref Tables'!$G$3:$G$75,'Window Film'!$AO7),'Ref Tables'!$G$3:$H$75,2,0)) -> GRY | AR7: =IF(AQ7="","",VLOOKUP(AQ7,'Ref Tables'!$C$1:$D$7,2,0)) -> Grey | AS7: GRY | AT7: =IF(ISERROR(VLOOKUP(SMALL('Ref Tables'!$I$3:$I$75,'Window Film'!AO7),'Ref Tables'!$I$3:$J$75,2,0)),"",VLOOKUP(SMALL('Ref Tables'!$I$3:$I$75,'Window Film'!AO7),'Ref Tables'!$I$3:$J$75,2,0)) -> Low-E(.1) on surface 2 | AU7: Titanium 20% | AV7: ='Ref Tables'!#REF! ->  | AW7: Chilled Water (Air Cooled)
B8: Address | K8: Heating | P8: Coating | W8: 6 | X8: AK | Y8: All Filled out | AB8: State | AC8: Cost | AE8: SHGC New Windows | AF8: =($S$11/$P$11)*AF7 ->  | AO8: 5 | AP8: Triple 1/8" Glass | AQ8: =IF(ISERROR(VLOOKUP(SMALL('Ref Tables'!$G$3:$G$75,'Window Film'!$AO8),'Ref Tables'!$G$3:$H$75,2,0)),"",VLOOKUP(SMALL('Ref Tables'!$G$3:$G$75,'Window Film'!$AO8),'Ref Tables'!$G$3:$H$75,2,0)) -> BLUGRN | AR8: =IF(AQ8="","",VLOOKUP(AQ8,'Ref Tables'!$C$1:$D$7,2,0)) -> Blue Green | AS8: BLUGRN | AT8: =IF(ISERROR(VLOOKUP(SMALL('Ref Tables'!$I$3:$I$75,'Window Film'!AO8),'Ref Tables'!$I$3:$J$75,2,0)),"",VLOOKUP(SMALL('Ref Tables'!$I$3:$I$75,'Window Film'!AO8),'Ref Tables'!$I$3:$J$75,2,0)) -> Low-E(.1) on surface 3 | AU8: Titanium 30% | AV8: ='Ref Tables'!#REF! ->  | AW8: Electric
B9: City | F9: State | H9: Zip | K9: Project Cost | M9: Film Manufacturer | Q9: Film Model | W9: 7 | X9: AL | Y9: =IF(AND(H5,R14,Q5="",ISNUMBER(SEARCH("effective as of",$F$12))),TRUE,FALSE) -> FALSE | AC9: =VLOOKUP($G$9&" "&$I$11,$AB$11:$AD$40,2,0) ->  | AD9: =VLOOKUP($G$9&" "&$I$11,$AB$11:$AD$40,3,0) ->  | AE9: Existing Window Summer Solar Heat Gain | AF9: =SUMPRODUCT($AF$4:$AM$4,$L$13:$S$13)*$AF$7 ->  | AG9: Btu/hr | AO9: 6 | AP9: Triple 1/4" Glass | AQ9: =IF(ISERROR(VLOOKUP(SMALL('Ref Tables'!$G$3:$G$75,'Window Film'!$AO9),'Ref Tables'!$G$3:$H$75,2,0)),"",VLOOKUP(SMALL('Ref Tables'!$G$3:$G$75,'Window Film'!$AO9),'Ref Tables'!$G$3:$H$75,2,0)) -> HI-P GRN | AR9: =IF(AQ9="","",VLOOKUP(AQ9,'Ref Tables'!$C$1:$D$7,2,0)) -> HI-Pass Green | AS9: HI-P GRN | AT9: =IF(ISERROR(VLOOKUP(SMALL('Ref Tables'!$I$3:$I$75,'Window Film'!AO9),'Ref Tables'!$I$3:$J$75,2,0)),"",VLOOKUP(SMALL('Ref Tables'!$I$3:$I$75,'Window Film'!AO9),'Ref Tables'!$I$3:$J$75,2,0)) -> Low-E(.05) on surface 2 | AW9: Heat Pump
B10: Contact Person | N10: Please visit WWW.NFRC.ORG to find Your Films SHGC Values | W10: 8 | X10: AR | Y10: =TODAY() -> 2025-03-31 | AC10: kWh | AD10: Demand | AE10: Existing Window Winter Solar Heat Gain | AF10: =SUMPRODUCT($AF$5:$AM$5,$L$13:$S$13)*$AF$7 ->  | AG10: Btu/hr | AO10: 7 | AQ10: =IF(ISERROR(VLOOKUP(SMALL('Ref Tables'!$G$3:$G$75,'Window Film'!$AO10),'Ref Tables'!$G$3:$H$75,2,0)),"",VLOOKUP(SMALL('Ref Tables'!$G$3:$G$75,'Window Film'!$AO10),'Ref Tables'!$G$3:$H$75,2,0)) -> BLU | AR10: =IF(AQ10="","",VLOOKUP(AQ10,'Ref Tables'!$C$1:$D$7,2,0)) -> Blue | AS10: BLU | AT10: =IF(ISERROR(VLOOKUP(SMALL('Ref Tables'!$I$3:$I$75,'Window Film'!AO10),'Ref Tables'!$I$3:$J$75,2,0)),"",VLOOKUP(SMALL('Ref Tables'!$I$3:$I$75,'Window Film'!AO10),'Ref Tables'!$I$3:$J$75,2,0)) -> Low-E(.2) on surface 5 | AW10: Gas
B11: Account Number | F11: Rate Schedule | N11: SHGC Without Film | Q11: SHGC With Film | W11: 9 | X11: AZ | Z11: =IF(ISERROR(MID(VLOOKUP(LARGE($AA$11:$AA$41,W3),$AA$11:$AB$40,2,),4,3)),"",MID(VLOOKUP(LARGE($AA$11:$AA$41,W3),$AA$11:$AB$40,2,),4,5)) ->  | AA11: =IF(LEFT(AB11,2)=$G$9,W3,"") ->  | AB11: WY 212 | AC11: 0.06631 | AE11: New Window Summer Solar Heat Gain | AF11: =SUMPRODUCT($AF$4:$AM$4,$L$13:$S$13)*$AF$8 ->  | AG11: Btu/hr | AO11: 8 | AT11: =IF(ISERROR(VLOOKUP(SMALL('Ref Tables'!$I$3:$I$75,'Window Film'!AO11),'Ref Tables'!$I$3:$J$75,2,0)),"",VLOOKUP(SMALL('Ref Tables'!$I$3:$I$75,'Window Film'!AO11),'Ref Tables'!$I$3:$J$75,2,0)) -> Low-E(.1) on surface 2 and 5 | AW11: =Irradiance!C4 -> St. George, UT (Latitude 37°)
B12: Meter Number | F12: =IF(OR($G$9="",$I$11=""),"",IF(ISERROR(MATCH($I$11,$Z$11:$Z$19,0)),CONCATENATE($I$11," is not a valid rate for ",$G$9),CONCATENATE("Rate ",I11," effective as of ",VLOOKUP(G9,TariffDates,3,FALSE)))) ->  | K12: Window Size (FT2) | L12: N | M12: NE | N12: E | O12: SE | P12: S | Q12: SW | R12: W | S12: NW | W12: 10 | X12: CO | AA12: =IF(LEFT(AB12,2)=$G$9,W4,"") ->  | AB12: WY 210 | AC12: 0.03244 | AD12: 15.964 | AE12: New Window Winter Solar Heat Gain | AF12: =SUMPRODUCT($AF$5:$AM$5,$L$13:$S$13)*$AF$8 ->  | AG12: Btu/hr | AO12: 9 | AT12: =IF(ISERROR(VLOOKUP(SMALL('Ref Tables'!$I$3:$I$75,'Window Film'!AO12),'Ref Tables'!$I$3:$J$75,2,0)),"",VLOOKUP(SMALL('Ref Tables'!$I$3:$I$75,'Window Film'!AO12),'Ref Tables'!$I$3:$J$75,2,0)) -> Low-E(.05) on surface 2 and 4 | AW12: =Irradiance!C5 -> Price, UT (Latitude 39°)
B13: Incentive Payee Information | W13: 11 | X13: CT | AB13: WY 58 | AC13: 0.06324 | AE13: Cooling Energy Savings | AF13: =AF9-AF11 ->  | AG13: Btu/hr | AH13: =AF13/3412/AI17 ->  | AW13: =Irradiance!C6 -> Salt Lake City, UT (Latitude 40°)
B14: Attention | K14: Energy and Cost Savings | R14: =IF(OR(L6="",L7="",L8="",L9="",O9="",R6="",R7="",Q8="",R9="",P11="",S11=""),FALSE,IF(AND(L13="",M13="",N13="",O13="",P13="",Q13="",R13="",S13=""),FALSE,"")) -> FALSE | W14: 12 | X14: DE | AB14: WY 54 | AC14: 0.06994 | AE14: Heating Energy Savings | AF14: =AF12-AF10 ->  | AG14: Btu/hr | AW14: =Irradiance!C7 -> Rock Springs, WY (Latitude 41.5°)
B15: Business Name | K15: Avg. Monthly Savings | M15: Annual Savings | Q15: Incentive | R15: =IFERROR(IF(C4<VLOOKUP(InstallState,TariffDates,3,FALSE),"Incorrect Tool Used",IF(Y9,$K$20*0.15,"")),"") ->  | W15: 13 | X15: FL | AB15: WY 48T | AC15: 0.0312 | AD15: 17.58 | AE15: Cooling Day Light Hours Summer (6 months) | AF15: =AN4 ->  | AG15: hrs | AW15: =Irradiance!C8 -> Yreka, CA (42°)
B16: Address | K16: =IF(Y9,$M$16/12,"") ->  | M16: =IF(Y9,$K$20*AC9+AD9*M20*12,"") ->  | P16: Net Project Cost | R16: =IF(Y9,$L$9-$R$15,"") ->  | W16: 14 | X16: GA | AB16: WY 46 | AC16: 0.03286 | AD16: 20.441 | AE16: Heating Day Light Hours Winter (6 months) | AF16: =AN5 ->  | AG16: hrs | AI16: COP | AJ16: Total | AW16: =Irradiance!C9 -> Crescent City, CA (42°)
B17: City | F17: State | H17: Zip | K17: Cooling Savings (kWh) | M17: =IF(L8="Gas", "Heating Penalty (Therms)", "Heating Penalty (kWh)") -> Heating Penalty (kWh) | P17: % Of Cost Paid By Incentive | S17: =IF(Y9,$R$15/$L$9,"") ->  | W17: 15 | X17: HI | AB17: WY 40 | AC17: 0.05206 | AD17: 7.825 | AE17: Summer Energy savings | AF17: =AF15*AF13 ->  | AH17: Btu | AI17: =VLOOKUP(L7,'Ref Tables'!$A$2:$B$10,2,0) ->  | AJ17: =AF17/AI17 ->  | AM17: BTU | AW17: =Irradiance!C10 -> Pocatello, ID (Latitude 42.5°)
B18: Note | K18: =IF(Y9,ROUND($AJ$17/3413,0),"") ->  | M18: =IF(Y9,IF(L8="Gas",ROUND($AJ$18/100000,0),ROUND($AJ$18/3413,0)),"") ->  | P18: =IF(L8<>"Gas","Simple Payback (yrs)","Simple Payback (yrs)*") -> Simple Payback (yrs) | W18: 16 | X18: IA | AB18: WY 33 | AC18: 0.03162 | AE18: Winter Energy savings | AF18: =AF16*AF14 ->  | AH18: Btu | AI18: =VLOOKUP(L8,'Ref Tables'!$A$2:$B$10,2,0) ->  | AJ18: =AF18/AI18 ->  | AM18: BTU | AW18: =Irradiance!C11 -> Casper, WY (43°)
B19: All blue fields must be completed to calculate energy savings and incentives. Incentive and energy savings are estimates only. The actual incentive paid will be determined based on the results of a post-installation inspection and review of project invoices. | K19: Annual Energy (kWh) | M19: Avg. Demand (kW) | P19: Pre-incentive | R19: Post-incentive | W19: 17 | X19: IL | AB19: WY 28 | AC19: 0.03676 | AD19: 16.924 | AJ19: =SUM(AJ17:AL18) ->  | AM19: Total BTU | AW19: =Irradiance!C12 -> Worland, WY (44°)
K20: =IF(Y9,IF(L8<>"Gas",ROUND(AJ19/3413,0), ROUND(AJ17/3413,0)),"") ->  | M20: =IF(Y9,IF(L8<>"Gas",($K$20/($AF$15+$AF$16))/12,($K$20/$AF$15)/12),"") ->  | P20: =IF(Y9,IF(M16<0,"NEVER",$L$9/$M$16),"") ->  | R20: =IF(Y9,IF(M16<0,"NEVER",$R$16/$M$16),"") ->  | W20: 18 | X20: IN | AB20: WY 25 | AC20: 0.0765 | AW20: =Irradiance!C13 -> Walla Walla, WA (46°)
P21: =IF(L8="Gas","*Simple Payback does not include gas heating penalty.","") ->  | W21: 19 | X21: KS | AB21: WA 48T | AC21: 0.0492 | AD21: 8.875 | AW21: =Irradiance!C14 -> Yakima, WA (46.5°)
W22: 20 | X22: KY | AB22: WA 40 | AC22: 0.07262 | AD22: 1.483 | AF22: Tariff Dates
W23: 21 | X23: LA | Z23: =IF(ISERROR(MID(VLOOKUP(LARGE($AA$11:$AA$41,W16),$AA$11:$AB$40,2,),4,3)),"",MID(VLOOKUP(LARGE($AA$11:$AA$41,W16),$AA$11:$AB$40,2,),4,5)) ->  | AA23: =IF(LEFT(AB23,2)=$G$9,W16,"") ->  | AB23: WA 36 | AC23: 0.05508 | AD23: 6.81 | AF23: CA | AG23: May 1, 2015 | AH23: 2015-05-01
W24: 22 | X24: MA | AB24: WA 24 | AC24: 0.06577 | AD24: 4.64 | AF24: ID | AG24: November 13, 2014 | AH24: 2014-11-13
W25: 23 | X25: MD | AB25: UT 23 | AC25: 0.0675 | AD25: 9.215 | AF25: UT | AG25: July 1, 2013 | AH25: 2013-07-01
W26: 24 | X26: ME | AB26: UT 10 | AC26: 0.05763 | AD26: 7.795 | AF26: WA | AG26: January 1, 2014 | AH26: 2014-01-01
W27: 25 | X27: MI | AB27: UT 9 | AC27: 0.04367 | AD27: 14.808 | AF27: WY | AG27: December 1, 2014 | AH27: 2014-12-01
W28: 26 | X28: MN | AB28: UT 9A | AC28: 0.09231
W29: 27 | X29: MO | AB29: UT 8 | AC29: 0.04814 | AD29: 19.182 | AI29: 50% incentive cap: | AJ29: =L9/2 -> 0
W30: 28 | X30: MS | AB30: UT 6 | AC30: 0.03925 | AD30: 13.573 | AI30: 1-year payback cap | AJ30: =L9-M16 -> 
W31: 29 | X31: MT | AB31: ID 35 | AC31: 0.05833 | AD31: 16.894 | AI31: Potential incentive: | AJ31: =K20*0.08 -> 
W32: 30 | X32: NC | AB32: ID 23 | AC32: 0.09569
W33: 31 | X33: ND | AB33: ID 10 | AC33: 0.05568 | AD33: 6.141
W34: 32 | X34: NE | AB34: ID 9 | AC34: 0.04746 | AD34: 9.243
W35: 33 | X35: NH | AB35: ID 6 | AC35: 0.04568 | AD35: 13.438
W36: 34 | X36: NJ | AB36: ID 6A | AC36: 0.04568 | AD36: 13.438
W37: 35 | X37: NM | AB37: CA 48 | AC37: 0.09819 | AD37: 7.15 | AF37: Updated 07/07/2016
W38: 36 | X38: NV | Z38: =IF(ISERROR(MID(VLOOKUP(LARGE($AA$11:$AA$41,W31),$AA$11:$AB$40,2,),4,3)),"",MID(VLOOKUP(LARGE($AA$11:$AA$41,W31),$AA$11:$AB$40,2,),4,5)) ->  | AA38: =IF(LEFT(AB38,2)=$G$9,W31,"") ->  | AB38: CA 36 | AC38: 0.11493 | AD38: 8.51 | AF38: Rates Effective as of:
W39: 37 | X39: NY | AB39: CA 32 | AC39: 0.14724 | AD39: 3.8 | AF39: CA | AG39: 2015-08-26
W40: 38 | X40: OH | AB40: CA 25 | AC40: 0.16465 | AF40: ID | AG40: 2016-04-01
W41: 39 | X41: OK | AB41: CA PA20 | AC41: 0.1349 | AD41: 3.946 | AF41: UT | AG41: 2016-06-01
W42: 40 | X42: OR | AF42: WA | AG42: 2015-03-26
W43: 41 | X43: PA | AF43: WY | AG43: 2015-05-15
W44: 42 | X44: RI | AF44: Rates for Software 6-17-2016
W45: 43 | X45: SC
W46: 44 | X46: SD
W47: 45 | X47: TN
W48: 46 | X48: TX
W49: 47 | X49: VA
W50: 48 | X50: VT
W51: 49 | X51: WI
W52: 50 | X52: WV

Sheet Ref Tables (hidden)
A1: HVAC COP | C1: CLR | D1: Clear | E1: Filter | K1: ASHRAE Fundamentals 2005, Sections 31.26 - 31.39 | P1: Filter Ref
A2: Cooling Types | B2: COP | C2: BRZ | D2: Bronze | E2: SHGC | F2: Unique Glazing | G2: Unique Tint | H2: Tint | I2: Unique Coating | J2: Coating | K2: ASHRAE Ref | L2: Glazing | M2: Tint | N2: Coating | O2: SHGC | R2: =IF(AND(N3<>"Reflective",OR(N3='Window Film'!$AT$3,'Window Film'!$AT$3="")),IF(OR(M3='Window Film'!$AQ$3,'Window Film'!$AQ$3=""),IF(OR(L3='Window Film'!$AP$3,'Window Film'!$AP$3=""), 'Ref Tables'!P3,""),""),"") -> 1
A3: AC | B3: 2.9 | C3: GRY | D3: Grey | E3: =IF(L3&M3&N3='Window Film'!$AP$3&'Window Film'!$AQ$3&'Window Film'!$AT$3,'Ref Tables'!O3,"") ->  | F3: =IF(AND(N3<>"Reflective",OR(L3='Window Film'!$AP$3,'Window Film'!$AP$3="")), 'Ref Tables'!P3,"") -> 1 | G3: =IF(H3="","",F3) -> 1 | H3: =IF(F3="","",IF(ISERROR(MATCH(M3,$H$2:H2,0)),M3,"")) -> CLR | I3: =IF(J3="","",F3) -> 1 | J3: =IF(F3="","",IF(ISERROR(MATCH(N3,$J$2:J2,0)),N3,"")) -> Uncoated | K3: 1a | L3: Single 1/8" Glass | M3: CLR | N3: Uncoated | O3: 0.86 | P3: 1
A4: Evaporative Cooler or IDEC | B4: 20 | C4: GRN | D4: Green | E4: =IF(L4&M4&N4='Window Film'!$AP$3&'Window Film'!$AQ$3&'Window Film'!$AT$3,'Ref Tables'!O4,"") ->  | F4: =IF(AND(N4<>"Reflective",OR(L4='Window Film'!$AP$3,'Window Film'!$AP$3="")), 'Ref Tables'!P4,"") -> 2 | G4: =IF(H4="","",F4) ->  | H4: =IF(F4="","",IF(ISERROR(MATCH(M4,$H$2:H3,0)),M4,"")) ->  | I4: =IF(J4="","",F4) ->  | J4: =IF(F4="","",IF(ISERROR(MATCH(N4,$J$2:J3,0)),N4,"")) ->  | K4: 1b | L4: Single 1/4" Glass | M4: CLR | N4: Uncoated | O4: 0.81 | P4: 2
A5: Chilled Water (Water Cooled) | B5: 4.2 | C5: BLUGRN | D5: Blue Green | E5: =IF(L5&M5&N5='Window Film'!$AP$3&'Window Film'!$AQ$3&'Window Film'!$AT$3,'Ref Tables'!O5,"") ->  | F5: =IF(AND(N5<>"Reflective",OR(L5='Window Film'!$AP$3,'Window Film'!$AP$3="")), 'Ref Tables'!P5,"") -> 3 | G5: 3 | H5: =IF(F5="","",IF(ISERROR(MATCH(M5,$H$2:H4,0)),M5,"")) -> BRZ | J5: =IF(F5="","",IF(ISERROR(MATCH(N5,$J$2:J4,0)),N5,"")) ->  | K5: 1c | L5: Single 1/8" Glass | M5: BRZ | N5: Uncoated | O5: 0.73 | P5: 3
A6: Chilled Water (Air Cooled) | B6: 3.2 | C6: BLU | D6: Blue | E6: =IF(L6&M6&N6='Window Film'!$AP$3&'Window Film'!$AQ$3&'Window Film'!$AT$3,'Ref Tables'!O6,"") ->  | F6: =IF(AND(N6<>"Reflective",OR(L6='Window Film'!$AP$3,'Window Film'!$AP$3="")), 'Ref Tables'!P6,"") -> 4 | H6: =IF(F6="","",IF(ISERROR(MATCH(M6,$H$2:H5,0)),M6,"")) ->  | J6: =IF(F6="","",IF(ISERROR(MATCH(N6,$J$2:J5,0)),N6,"")) ->  | K6: 1d | L6: Single 1/4" Glass | M6: BRZ | N6: Uncoated | O6: 0.62 | P6: 4
A7: Heating Types | C7: HI-P GRN | D7: HI-Pass Green | E7: =IF(L7&M7&N7='Window Film'!$AP$3&'Window Film'!$AQ$3&'Window Film'!$AT$3,'Ref Tables'!O7,"") ->  | F7: =IF(AND(N7<>"Reflective",OR(L7='Window Film'!$AP$3,'Window Film'!$AP$3="")), 'Ref Tables'!P7,"") -> 5 | G7: 5 | H7: =IF(F7="","",IF(ISERROR(MATCH(M7,$H$2:H6,0)),M7,"")) -> GRN | J7: =IF(F7="","",IF(ISERROR(MATCH(N7,$J$2:J6,0)),N7,"")) ->  | K7: 1e | L7: Single 1/8" Glass | M7: GRN | N7: Uncoated | O7: 0.7 | P7: 5
A8: Electric | B8: 1 | E8: =IF(L8&M8&N8='Window Film'!$AP$3&'Window Film'!$AQ$3&'Window Film'!$AT$3,'Ref Tables'!O8,"") ->  | F8: =IF(AND(N8<>"Reflective",OR(L8='Window Film'!$AP$3,'Window Film'!$AP$3="")), 'Ref Tables'!P8,"") -> 6 | H8: =IF(F8="","",IF(ISERROR(MATCH(M8,$H$2:H7,0)),M8,"")) ->  | J8: =IF(F8="","",IF(ISERROR(MATCH(N8,$J$2:J7,0)),N8,"")) ->  | K8: 1f | L8: Single 1/4" Glass | M8: GRN | N8: Uncoated | O8: 0.6 | P8: 6
A9: Heat Pump | B9: 3.2 | E9: =IF(L9&M9&N9='Window Film'!$AP$3&'Window Film'!$AQ$3&'Window Film'!$AT$3,'Ref Tables'!O9,"") ->  | F9: =IF(AND(N9<>"Reflective",OR(L9='Window Film'!$AP$3,'Window Film'!$AP$3="")), 'Ref Tables'!P9,"") -> 7 | G9: 7 | H9: =IF(F9="","",IF(ISERROR(MATCH(M9,$H$2:H8,0)),M9,"")) -> GRY | J9: =IF(F9="","",IF(ISERROR(MATCH(N9,$J$2:J8,0)),N9,"")) ->  | K9: 1g | L9: Single 1/8" Glass | M9: GRY | N9: Uncoated | O9: 0.7 | P9: 7
A10: Gas | B10: 0.8 | E10: =IF(L10&M10&N10='Window Film'!$AP$3&'Window Film'!$AQ$3&'Window Film'!$AT$3,'Ref Tables'!O10,"") ->  | F10: =IF(AND(N10<>"Reflective",OR(L10='Window Film'!$AP$3,'Window Film'!$AP$3="")), 'Ref Tables'!P10,"") -> 8 | H10: =IF(F10="","",IF(ISERROR(MATCH(M10,$H$2:H9,0)),M10,"")) ->  | J10: =IF(F10="","",IF(ISERROR(MATCH(N10,$J$2:J9,0)),N10,"")) ->  | K10: 1h | L10: Single 1/4" Glass | M10: GRY | N10: Uncoated | O10: 0.59 | P10: 8
E11: =IF(L11&M11&N11='Window Film'!$AP$3&'Window Film'!$AQ$3&'Window Film'!$AT$3,'Ref Tables'!O11,"") ->  | F11: =IF(AND(N11<>"Reflective",OR(L11='Window Film'!$AP$3,'Window Film'!$AP$3="")), 'Ref Tables'!P11,"") -> 9 | G11: 9 | H11: =IF(F11="","",IF(ISERROR(MATCH(M11,$H$2:H10,0)),M11,"")) -> BLUGRN | J11: =IF(F11="","",IF(ISERROR(MATCH(N11,$J$2:J10,0)),N11,"")) ->  | K11: 1i | L11: Single 1/4" Glass | M11: BLUGRN | N11: Uncoated | O11: 0.62 | P11: 9
E12: =IF(L12&M12&N12='Window Film'!$AP$3&'Window Film'!$AQ$3&'Window Film'!$AT$3,'Ref Tables'!O12,"") ->  | F12: =IF(AND(N12<>"Reflective",OR(L12='Window Film'!$AP$3,'Window Film'!$AP$3="")), 'Ref Tables'!P12,"") ->  | H12: =IF(F12="","",IF(ISERROR(MATCH(M12,$H$2:H11,0)),M12,"")) ->  | J12: =IF(F12="","",IF(ISERROR(MATCH(N12,$J$2:J11,0)),N12,"")) ->  | K12: 1j | L12: Single 1/4" Glass | M12: SS 14% CLR | N12: Reflective | O12: 0.19 | P12: 10
E13: =IF(L13&M13&N13='Window Film'!$AP$3&'Window Film'!$AQ$3&'Window Film'!$AT$3,'Ref Tables'!O13,"") ->  | F13: =IF(AND(N13<>"Reflective",OR(L13='Window Film'!$AP$3,'Window Film'!$AP$3="")), 'Ref Tables'!P13,"") ->  | H13: =IF(F13="","",IF(ISERROR(MATCH(M13,$H$2:H12,0)),M13,"")) ->  | J13: =IF(F13="","",IF(ISERROR(MATCH(N13,$J$2:J12,0)),N13,"")) ->  | K13: 1k | L13: Single 1/4" Glass | M13: SS 20% CLR | N13: Reflective | O13: 0.25 | P13: 11
E14: =IF(L14&M14&N14='Window Film'!$AP$3&'Window Film'!$AQ$3&'Window Film'!$AT$3,'Ref Tables'!O14,"") ->  | F14: =IF(AND(N14<>"Reflective",OR(L14='Window Film'!$AP$3,'Window Film'!$AP$3="")), 'Ref Tables'!P14,"") ->  | H14: =IF(F14="","",IF(ISERROR(MATCH(M14,$H$2:H13,0)),M14,"")) ->  | J14: =IF(F14="","",IF(ISERROR(MATCH(N14,$J$2:J13,0)),N14,"")) ->  | K14: 1l | L14: Single 1/4" Glass | M14: SS 8% CLR | N14: Reflective | O14: 0.31 | P14: 12
E15: =IF(L15&M15&N15='Window Film'!$AP$3&'Window Film'!$AQ$3&'Window Film'!$AT$3,'Ref Tables'!O15,"") ->  | F15: =IF(AND(N15<>"Reflective",OR(L15='Window Film'!$AP$3,'Window Film'!$AP$3="")), 'Ref Tables'!P15,"") ->  | H15: =IF(F15="","",IF(ISERROR(MATCH(M15,$H$2:H14,0)),M15,"")) ->  | J15: =IF(F15="","",IF(ISERROR(MATCH(N15,$J$2:J14,0)),N15,"")) ->  | K15: 1m | L15: Single 1/4" Glass | M15: SS 14% GRN | N15: Reflective | O15: 0.25 | P15: 13
E16: =IF(L16&M16&N16='Window Film'!$AP$3&'Window Film'!$AQ$3&'Window Film'!$AT$3,'Ref Tables'!O16,"") ->  | F16: =IF(AND(N16<>"Reflective",OR(L16='Window Film'!$AP$3,'Window Film'!$AP$3="")), 'Ref Tables'!P16,"") ->  | H16: =IF(F16="","",IF(ISERROR(MATCH(M16,$H$2:H15,0)),M16,"")) ->  | J16: =IF(F16="","",IF(ISERROR(MATCH(N16,$J$2:J15,0)),N16,"")) ->  | K16: 1n | L16: Single 1/4" Glass | M16: TI 20% CLR | N16: Reflective | O16: 0.29 | P16: 14
E17: =IF(L17&M17&N17='Window Film'!$AP$3&'Window Film'!$AQ$3&'Window Film'!$AT$3,'Ref Tables'!O17,"") ->  | F17: =IF(AND(N17<>"Reflective",OR(L17='Window Film'!$AP$3,'Window Film'!$AP$3="")), 'Ref Tables'!P17,"") ->  | H17: =IF(F17="","",IF(ISERROR(MATCH(M17,$H$2:H16,0)),M17,"")) ->  | J17: =IF(F17="","",IF(ISERROR(MATCH(N17,$J$2:J16,0)),N17,"")) ->  | K17: 1o | L17: Single 1/4" Glass | M17: TI 30% CLR | N17: Reflective | O17: 0.39 | P17: 15
E18: =IF(L18&M18&N18='Window Film'!$AP$3&'Window Film'!$AQ$3&'Window Film'!$AT$3,'Ref Tables'!O18,"") ->  | F18: =IF(AND(N18<>"Reflective",OR(L18='Window Film'!$AP$3,'Window Film'!$AP$3="")), 'Ref Tables'!P18,"") -> 16 | H18: =IF(F18="","",IF(ISERROR(MATCH(M18,$H$2:H17,0)),M18,"")) ->  | J18: =IF(F18="","",IF(ISERROR(MATCH(N18,$J$2:J17,0)),N18,"")) ->  | K18: 5a | L18: Double 1/8" Glass | M18: CLR | N18: Uncoated | O18: 0.76 | P18: 16
E19: =IF(L19&M19&N19='Window Film'!$AP$3&'Window Film'!$AQ$3&'Window Film'!$AT$3,'Ref Tables'!O19,"") ->  | F19: =IF(AND(N19<>"Reflective",OR(L19='Window Film'!$AP$3,'Window Film'!$AP$3="")), 'Ref Tables'!P19,"") -> 17 | H19: =IF(F19="","",IF(ISERROR(MATCH(M19,$H$2:H18,0)),M19,"")) ->  | J19: =IF(F19="","",IF(ISERROR(MATCH(N19,$J$2:J18,0)),N19,"")) ->  | K19: 5b | L19: Double 1/4" Glass | M19: CLR | N19: Uncoated | O19: 0.7 | P19: 17
E20: =IF(L20&M20&N20='Window Film'!$AP$3&'Window Film'!$AQ$3&'Window Film'!$AT$3,'Ref Tables'!O20,"") ->  | F20: =IF(AND(N20<>"Reflective",OR(L20='Window Film'!$AP$3,'Window Film'!$AP$3="")), 'Ref Tables'!P20,"") -> 18 | H20: =IF(F20="","",IF(ISERROR(MATCH(M20,$H$2:H19,0)),M20,"")) ->  | J20: =IF(F20="","",IF(ISERROR(MATCH(N20,$J$2:J19,0)),N20,"")) ->  | K20: 5c | L20: Double 1/8" Glass | M20: BRZ | N20: Uncoated | O20: 0.62 | P20: 18
E21: =IF(L21&M21&N21='Window Film'!$AP$3&'Window Film'!$AQ$3&'Window Film'!$AT$3,'Ref Tables'!O21,"") ->  | F21: =IF(AND(N21<>"Reflective",OR(L21='Window Film'!$AP$3,'Window Film'!$AP$3="")), 'Ref Tables'!P21,"") -> 19 | H21: =IF(F21="","",IF(ISERROR(MATCH(M21,$H$2:H20,0)),M21,"")) ->  | J21: =IF(F21="","",IF(ISERROR(MATCH(N21,$J$2:J20,0)),N21,"")) ->  | K21: 5d | L21: Double 1/4" Glass | M21: BRZ | N21: Uncoated | O21: 0.49 | P21: 19
E22: =IF(L22&M22&N22='Window Film'!$AP$3&'Window Film'!$AQ$3&'Window Film'!$AT$3,'Ref Tables'!O22,"") ->  | F22: =IF(AND(N22<>"Reflective",OR(L22='Window Film'!$AP$3,'Window Film'!$AP$3="")), 'Ref Tables'!P22,"") -> 20 | H22: =IF(F22="","",IF(ISERROR(MATCH(M22,$H$2:H21,0)),M22,"")) ->  | J22: =IF(F22="","",IF(ISERROR(MATCH(N22,$J$2:J21,0)),N22,"")) ->  | K22: 5e | L22: Double 1/8" Glass | M22: GRN | N22: Uncoated | O22: 0.6 | P22: 20
E23: =IF(L23&M23&N23='Window Film'!$AP$3&'Window Film'!$AQ$3&'Window Film'!$AT$3,'Ref Tables'!O23,"") ->  | F23: =IF(AND(N23<>"Reflective",OR(L23='Window Film'!$AP$3,'Window Film'!$AP$3="")), 'Ref Tables'!P23,"") -> 21 | H23: =IF(F23="","",IF(ISERROR(MATCH(M23,$H$2:H22,0)),M23,"")) ->  | J23: =IF(F23="","",IF(ISERROR(MATCH(N23,$J$2:J22,0)),N23,"")) ->  | K23: 5f | L23: Double 1/4" Glass | M23: GRN | N23: Uncoated | O23: 0.49 | P23: 21
E24: =IF(L24&M24&N24='Window Film'!$AP$3&'Window Film'!$AQ$3&'Window Film'!$AT$3,'Ref Tables'!O24,"") ->  | F24: =IF(AND(N24<>"Reflective",OR(L24='Window Film'!$AP$3,'Window Film'!$AP$3="")), 'Ref Tables'!P24,"") -> 22 | H24: =IF(F24="","",IF(ISERROR(MATCH(M24,$H$2:H23,0)),M24,"")) ->  | J24: =IF(F24="","",IF(ISERROR(MATCH(N24,$J$2:J23,0)),N24,"")) ->  | K24: 5g | L24: Double 1/8" Glass | M24: GRY | N24: Uncoated | O24: 0.6 | P24: 22
E25: =IF(L25&M25&N25='Window Film'!$AP$3&'Window Film'!$AQ$3&'Window Film'!$AT$3,'Ref Tables'!O25,"") ->  | F25: =IF(AND(N25<>"Reflective",OR(L25='Window Film'!$AP$3,'Window Film'!$AP$3="")), 'Ref Tables'!P25,"") -> 23 | H25: =IF(F25="","",IF(ISERROR(MATCH(M25,$H$2:H24,0)),M25,"")) ->  | J25: =IF(F25="","",IF(ISERROR(MATCH(N25,$J$2:J24,0)),N25,"")) ->  | K25: 5h | L25: Double 1/4" Glass | M25: GRY | N25: Uncoated | O25: 0.47 | P25: 23
E26: =IF(L26&M26&N26='Window Film'!$AP$3&'Window Film'!$AQ$3&'Window Film'!$AT$3,'Ref Tables'!O26,"") ->  | F26: =IF(AND(N26<>"Reflective",OR(L26='Window Film'!$AP$3,'Window Film'!$AP$3="")), 'Ref Tables'!P26,"") -> 24 | H26: =IF(F26="","",IF(ISERROR(MATCH(M26,$H$2:H25,0)),M26,"")) ->  | J26: =IF(F26="","",IF(ISERROR(MATCH(N26,$J$2:J25,0)),N26,"")) ->  | K26: 5i | L26: Double 1/4" Glass | M26: BLUGRN | N26: Uncoated | O26: 0.5 | P26: 24
E27: =IF(L27&M27&N27='Window Film'!$AP$3&'Window Film'!$AQ$3&'Window Film'!$AT$3,'Ref Tables'!O27,"") ->  | F27: =IF(AND(N27<>"Reflective",OR(L27='Window Film'!$AP$3,'Window Film'!$AP$3="")), 'Ref Tables'!P27,"") -> 25 | G27: 25 | H27: =IF(F27="","",IF(ISERROR(MATCH(M27,$H$2:H26,0)),M27,"")) -> HI-P GRN | J27: =IF(F27="","",IF(ISERROR(MATCH(N27,$J$2:J26,0)),N27,"")) ->  | K27: 5j | L27: Double 1/4" Glass | M27: HI-P GRN | N27: Uncoated | O27: 0.39 | P27: 25
E28: =IF(L28&M28&N28='Window Film'!$AP$3&'Window Film'!$AQ$3&'Window Film'!$AT$3,'Ref Tables'!O28,"") ->  | F28: =IF(AND(N28<>"Reflective",OR(L28='Window Film'!$AP$3,'Window Film'!$AP$3="")), 'Ref Tables'!P28,"") ->  | H28: =IF(F28="","",IF(ISERROR(MATCH(M28,$H$2:H27,0)),M28,"")) ->  | J28: =IF(F28="","",IF(ISERROR(MATCH(N28,$J$2:J27,0)),N28,"")) ->  | K28: 5k | L28: Double 1/4" Glass | M28: SS 8% CLR CLR | N28: Reflective | O28: 0.13 | P28: 26
E29: =IF(L29&M29&N29='Window Film'!$AP$3&'Window Film'!$AQ$3&'Window Film'!$AT$3,'Ref Tables'!O29,"") ->  | F29: =IF(AND(N29<>"Reflective",OR(L29='Window Film'!$AP$3,'Window Film'!$AP$3="")), 'Ref Tables'!P29,"") ->  | H29: =IF(F29="","",IF(ISERROR(MATCH(M29,$H$2:H28,0)),M29,"")) ->  | J29: =IF(F29="","",IF(ISERROR(MATCH(N29,$J$2:J28,0)),N29,"")) ->  | K29: 5l | L29: Double 1/4" Glass | M29: SS 14% CLR CLR | N29: Reflective | O29: 0.17 | P29: 27
E30: =IF(L30&M30&N30='Window Film'!$AP$3&'Window Film'!$AQ$3&'Window Film'!$AT$3,'Ref Tables'!O30,"") ->  | F30: =IF(AND(N30<>"Reflective",OR(L30='Window Film'!$AP$3,'Window Film'!$AP$3="")), 'Ref Tables'!P30,"") ->  | H30: =IF(F30="","",IF(ISERROR(MATCH(M30,$H$2:H29,0)),M30,"")) ->  | J30: =IF(F30="","",IF(ISERROR(MATCH(N30,$J$2:J29,0)),N30,"")) ->  | K30: 5m | L30: Double 1/4" Glass | M30: SS 20% CLR CLR | N30: Reflective | O30: 0.22 | P30: 28
E31: =IF(L31&M31&N31='Window Film'!$AP$3&'Window Film'!$AQ$3&'Window Film'!$AT$3,'Ref Tables'!O31,"") ->  | F31: =IF(AND(N31<>"Reflective",OR(L31='Window Film'!$AP$3,'Window Film'!$AP$3="")), 'Ref Tables'!P31,"") ->  | H31: =IF(F31="","",IF(ISERROR(MATCH(M31,$H$2:H30,0)),M31,"")) ->  | J31: =IF(F31="","",IF(ISERROR(MATCH(N31,$J$2:J30,0)),N31,"")) ->  | K31: 5n | L31: Double 1/4" Glass | M31: SS 14% GRN CLR | N31: Reflective | O31: 0.16 | P31: 29
E32: =IF(L32&M32&N32='Window Film'!$AP$3&'Window Film'!$AQ$3&'Window Film'!$AT$3,'Ref Tables'!O32,"") ->  | F32: =IF(AND(N32<>"Reflective",OR(L32='Window Film'!$AP$3,'Window Film'!$AP$3="")), 'Ref Tables'!P32,"") ->  | H32: =IF(F32="","",IF(ISERROR(MATCH(M32,$H$2:H31,0)),M32,"")) ->  | J32: =IF(F32="","",IF(ISERROR(MATCH(N32,$J$2:J31,0)),N32,"")) ->  | K32: 5o | L32: Double 1/4" Glass | M32: TI 20% CLR CLR | N32: Reflective | O32: 0.21 | P32: 30
E33: =IF(L33&M33&N33='Window Film'!$AP$3&'Window Film'!$AQ$3&'Window Film'!$AT$3,'Ref Tables'!O33,"") ->  | F33: =IF(AND(N33<>"Reflective",OR(L33='Window Film'!$AP$3,'Window Film'!$AP$3="")), 'Ref Tables'!P33,"") ->  | H33: =IF(F33="","",IF(ISERROR(MATCH(M33,$H$2:H32,0)),M33,"")) ->  | J33: =IF(F33="","",IF(ISERROR(MATCH(N33,$J$2:J32,0)),N33,"")) ->  | K33: 5p | L33: Double 1/4" Glass | M33: TI 30% CLR CLR | N33: Reflective | O33: 0.29 | P33: 31
E34: =IF(L34&M34&N34='Window Film'!$AP$3&'Window Film'!$AQ$3&'Window Film'!$AT$3,'Ref Tables'!O34,"") ->  | F34: =IF(AND(N34<>"Reflective",OR(L34='Window Film'!$AP$3,'Window Film'!$AP$3="")), 'Ref Tables'!P34,"") -> 32 | H34: =IF(F34="","",IF(ISERROR(MATCH(M34,$H$2:H33,0)),M34,"")) ->  | I34: 32 | J34: =IF(F34="","",IF(ISERROR(MATCH(N34,$J$2:J33,0)),N34,"")) -> Low-E(.2) on surface 2 | K34: 17a | L34: Double 1/8" Glass | M34: CLR | N34: Low-E(.2) on surface 2 | O34: 0.65 | P34: 32
E35: =IF(L35&M35&N35='Window Film'!$AP$3&'Window Film'!$AQ$3&'Window Film'!$AT$3,'Ref Tables'!O35,"") ->  | F35: =IF(AND(N35<>"Reflective",OR(L35='Window Film'!$AP$3,'Window Film'!$AP$3="")), 'Ref Tables'!P35,"") -> 33 | H35: =IF(F35="","",IF(ISERROR(MATCH(M35,$H$2:H34,0)),M35,"")) ->  | J35: =IF(F35="","",IF(ISERROR(MATCH(N35,$J$2:J34,0)),N35,"")) ->  | K35: 17b | L35: Double 1/4" Glass | M35: CLR | N35: Low-E(.2) on surface 2 | O35: 0.6 | P35: 33
E36: =IF(L36&M36&N36='Window Film'!$AP$3&'Window Film'!$AQ$3&'Window Film'!$AT$3,'Ref Tables'!O36,"") ->  | F36: =IF(AND(N36<>"Reflective",OR(L36='Window Film'!$AP$3,'Window Film'!$AP$3="")), 'Ref Tables'!P36,"") -> 34 | H36: =IF(F36="","",IF(ISERROR(MATCH(M36,$H$2:H35,0)),M36,"")) ->  | I36: 34 | J36: =IF(F36="","",IF(ISERROR(MATCH(N36,$J$2:J35,0)),N36,"")) -> Low-E(.2) on surface 3 | K36: 17c | L36: Double 1/8" Glass | M36: CLR | N36: Low-E(.2) on surface 3 | O36: 0.7 | P36: 34
E37: =IF(L37&M37&N37='Window Film'!$AP$3&'Window Film'!$AQ$3&'Window Film'!$AT$3,'Ref Tables'!O37,"") ->  | F37: =IF(AND(N37<>"Reflective",OR(L37='Window Film'!$AP$3,'Window Film'!$AP$3="")), 'Ref Tables'!P37,"") -> 35 | H37: =IF(F37="","",IF(ISERROR(MATCH(M37,$H$2:H36,0)),M37,"")) ->  | J37: =IF(F37="","",IF(ISERROR(MATCH(N37,$J$2:J36,0)),N37,"")) ->  | K37: 17d | L37: Double 1/4" Glass | M37: CLR | N37: Low-E(.2) on surface 3 | O37: 0.65 | P37: 35
E38: =IF(L38&M38&N38='Window Film'!$AP$3&'Window Film'!$AQ$3&'Window Film'!$AT$3,'Ref Tables'!O38,"") ->  | F38: =IF(AND(N38<>"Reflective",OR(L38='Window Film'!$AP$3,'Window Film'!$AP$3="")), 'Ref Tables'!P38,"") -> 36 | H38: =IF(F38="","",IF(ISERROR(MATCH(M38,$H$2:H37,0)),M38,"")) ->  | J38: =IF(F38="","",IF(ISERROR(MATCH(N38,$J$2:J37,0)),N38,"")) ->  | K38: 17e | L38: Double 1/8" Glass | M38: BRZ | N38: Low-E(.2) on surface 3 | O38: 0.57 | P38: 36
E39: =IF(L39&M39&N39='Window Film'!$AP$3&'Window Film'!$AQ$3&'Window Film'!$AT$3,'Ref Tables'!O39,"") ->  | F39: =IF(AND(N39<>"Reflective",OR(L39='Window Film'!$AP$3,'Window Film'!$AP$3="")), 'Ref Tables'!P39,"") -> 37 | H39: =IF(F39="","",IF(ISERROR(MATCH(M39,$H$2:H38,0)),M39,"")) ->  | J39: =IF(F39="","",IF(ISERROR(MATCH(N39,$J$2:J38,0)),N39,"")) ->  | K39: 17f | L39: Double 1/4" Glass | M39: BRZ | N39: Low-E(.2) on surface 3 | O39: 0.45 | P39: 37
E40: =IF(L40&M40&N40='Window Film'!$AP$3&'Window Film'!$AQ$3&'Window Film'!$AT$3,'Ref Tables'!O40,"") ->  | F40: =IF(AND(N40<>"Reflective",OR(L40='Window Film'!$AP$3,'Window Film'!$AP$3="")), 'Ref Tables'!P40,"") -> 38 | H40: =IF(F40="","",IF(ISERROR(MATCH(M40,$H$2:H39,0)),M40,"")) ->  | J40: =IF(F40="","",IF(ISERROR(MATCH(N40,$J$2:J39,0)),N40,"")) ->  | K40: 17g | L40: Double 1/8" Glass | M40: GRN | N40: Low-E(.2) on surface 3 | O40: 0.55 | P40: 38
E41: =IF(L41&M41&N41='Window Film'!$AP$3&'Window Film'!$AQ$3&'Window Film'!$AT$3,'Ref Tables'!O41,"") ->  | F41: =IF(AND(N41<>"Reflective",OR(L41='Window Film'!$AP$3,'Window Film'!$AP$3="")), 'Ref Tables'!P41,"") -> 39 | H41: =IF(F41="","",IF(ISERROR(MATCH(M41,$H$2:H40,0)),M41,"")) ->  | J41: =IF(F41="","",IF(ISERROR(MATCH(N41,$J$2:J40,0)),N41,"")) ->  | K41: 17h | L41: Double 1/4" Glass | M41: GRN | N41: Low-E(.2) on surface 3 | O41: 0.41 | P41: 39
E42: =IF(L42&M42&N42='Window Film'!$AP$3&'Window Film'!$AQ$3&'Window Film'!$AT$3,'Ref Tables'!O42,"") ->  | F42: =IF(AND(N42<>"Reflective",OR(L42='Window Film'!$AP$3,'Window Film'!$AP$3="")), 'Ref Tables'!P42,"") -> 40 | H42: =IF(F42="","",IF(ISERROR(MATCH(M42,$H$2:H41,0)),M42,"")) ->  | J42: =IF(F42="","",IF(ISERROR(MATCH(N42,$J$2:J41,0)),N42,"")) ->  | K42: 17i | L42: Double 1/8" Glass | M42: GRY | N42: Low-E(.2) on surface 3 | O42: 0.54 | P42: 40
E43: =IF(L43&M43&N43='Window Film'!$AP$3&'Window Film'!$AQ$3&'Window Film'!$AT$3,'Ref Tables'!O43,"") ->  | F43: =IF(AND(N43<>"Reflective",OR(L43='Window Film'!$AP$3,'Window Film'!$AP$3="")), 'Ref Tables'!P43,"") -> 41 | H43: =IF(F43="","",IF(ISERROR(MATCH(M43,$H$2:H42,0)),M43,"")) ->  | J43: =IF(F43="","",IF(ISERROR(MATCH(N43,$J$2:J42,0)),N43,"")) ->  | K43: 17j | L43: Double 1/4" Glass | M43: GRY | N43: Low-E(.2) on surface 3 | O43: 0.39 | P43: 41
E44: =IF(L44&M44&N44='Window Film'!$AP$3&'Window Film'!$AQ$3&'Window Film'!$AT$3,'Ref Tables'!O44,"") ->  | F44: =IF(AND(N44<>"Reflective",OR(L44='Window Film'!$AP$3,'Window Film'!$AP$3="")), 'Ref Tables'!P44,"") -> 42 | H44: =IF(F44="","",IF(ISERROR(MATCH(M44,$H$2:H43,0)),M44,"")) ->  | J44: =IF(F44="","",IF(ISERROR(MATCH(N44,$J$2:J43,0)),N44,"")) ->  | K44: 17k | L44: Double 1/4" Glass | M44: BLUGRN | N44: Low-E(.2) on surface 3 | O44: 0.45 | P44: 42
E45: =IF(L45&M45&N45='Window Film'!$AP$3&'Window Film'!$AQ$3&'Window Film'!$AT$3,'Ref Tables'!O45,"") ->  | F45: =IF(AND(N45<>"Reflective",OR(L45='Window Film'!$AP$3,'Window Film'!$AP$3="")), 'Ref Tables'!P45,"") -> 43 | H45: =IF(F45="","",IF(ISERROR(MATCH(M45,$H$2:H44,0)),M45,"")) ->  | J45: =IF(F45="","",IF(ISERROR(MATCH(N45,$J$2:J44,0)),N45,"")) ->  | K45: 17l | L45: Double 1/4" Glass | M45: HI-P GRN | N45: Low-E(.2) on surface 3 | O45: 0.34 | P45: 43
E46: =IF(L46&M46&N46='Window Film'!$AP$3&'Window Film'!$AQ$3&'Window Film'!$AT$3,'Ref Tables'!O46,"") ->  | F46: =IF(AND(N46<>"Reflective",OR(L46='Window Film'!$AP$3,'Window Film'!$AP$3="")), 'Ref Tables'!P46,"") -> 44 | H46: =IF(F46="","",IF(ISERROR(MATCH(M46,$H$2:H45,0)),M46,"")) ->  | I46: 44 | J46: =IF(F46="","",IF(ISERROR(MATCH(N46,$J$2:J45,0)),N46,"")) -> Low-E(.1) on surface 2 | K46: 21a | L46: Double 1/8" Glass | M46: CLR | N46: Low-E(.1) on surface 2 | O46: 0.65 | P46: 44
E47: =IF(L47&M47&N47='Window Film'!$AP$3&'Window Film'!$AQ$3&'Window Film'!$AT$3,'Ref Tables'!O47,"") ->  | F47: =IF(AND(N47<>"Reflective",OR(L47='Window Film'!$AP$3,'Window Film'!$AP$3="")), 'Ref Tables'!P47,"") -> 45 | H47: =IF(F47="","",IF(ISERROR(MATCH(M47,$H$2:H46,0)),M47,"")) ->  | J47: =IF(F47="","",IF(ISERROR(MATCH(N47,$J$2:J46,0)),N47,"")) ->  | K47: 21b | L47: Double 1/4" Glass | M47: CLR | N47: Low-E(.1) on surface 2 | O47: 0.6 | P47: 45
E48: =IF(L48&M48&N48='Window Film'!$AP$3&'Window Film'!$AQ$3&'Window Film'!$AT$3,'Ref Tables'!O48,"") ->  | F48: =IF(AND(N48<>"Reflective",OR(L48='Window Film'!$AP$3,'Window Film'!$AP$3="")), 'Ref Tables'!P48,"") -> 46 | H48: =IF(F48="","",IF(ISERROR(MATCH(M48,$H$2:H47,0)),M48,"")) ->  | I48: 46 | J48: =IF(F48="","",IF(ISERROR(MATCH(N48,$J$2:J47,0)),N48,"")) -> Low-E(.1) on surface 3 | K48: 21c | L48: Double 1/8" Glass | M48: CLR | N48: Low-E(.1) on surface 3 | O48: 0.6 | P48: 46
E49: =IF(L49&M49&N49='Window Film'!$AP$3&'Window Film'!$AQ$3&'Window Film'!$AT$3,'Ref Tables'!O49,"") ->  | F49: =IF(AND(N49<>"Reflective",OR(L49='Window Film'!$AP$3,'Window Film'!$AP$3="")), 'Ref Tables'!P49,"") -> 47 | H49: =IF(F49="","",IF(ISERROR(MATCH(M49,$H$2:H48,0)),M49,"")) ->  | J49: =IF(F49="","",IF(ISERROR(MATCH(N49,$J$2:J48,0)),N49,"")) ->  | K49: 21d | L49: Double 1/4" Glass | M49: CLR | N49: Low-E(.1) on surface 3 | O49: 0.56 | P49: 47
E50: =IF(L50&M50&N50='Window Film'!$AP$3&'Window Film'!$AQ$3&'Window Film'!$AT$3,'Ref Tables'!O50,"") ->  | F50: =IF(AND(N50<>"Reflective",OR(L50='Window Film'!$AP$3,'Window Film'!$AP$3="")), 'Ref Tables'!P50,"") -> 48 | H50: =IF(F50="","",IF(ISERROR(MATCH(M50,$H$2:H49,0)),M50,"")) ->  | J50: =IF(F50="","",IF(ISERROR(MATCH(N50,$J$2:J49,0)),N50,"")) ->  | K50: 21e | L50: Double 1/8" Glass | M50: BRZ | N50: Low-E(.1) on surface 3 | O50: 0.48 | P50: 48
E51: =IF(L51&M51&N51='Window Film'!$AP$3&'Window Film'!$AQ$3&'Window Film'!$AT$3,'Ref Tables'!O51,"") ->  | F51: =IF(AND(N51<>"Reflective",OR(L51='Window Film'!$AP$3,'Window Film'!$AP$3="")), 'Ref Tables'!P51,"") -> 49 | H51: =IF(F51="","",IF(ISERROR(MATCH(M51,$H$2:H50,0)),M51,"")) ->  | J51: =IF(F51="","",IF(ISERROR(MATCH(N51,$J$2:J50,0)),N51,"")) ->  | K51: 21f | L51: Double 1/4" Glass | M51: BRZ | N51: Low-E(.1) on surface 3 | O51: 0.39 | P51: 49
E52: =IF(L52&M52&N52='Window Film'!$AP$3&'Window Film'!$AQ$3&'Window Film'!$AT$3,'Ref Tables'!O52,"") ->  | F52: =IF(AND(N52<>"Reflective",OR(L52='Window Film'!$AP$3,'Window Film'!$AP$3="")), 'Ref Tables'!P52,"") -> 50 | H52: =IF(F52="","",IF(ISERROR(MATCH(M52,$H$2:H51,0)),M52,"")) ->  | J52: =IF(F52="","",IF(ISERROR(MATCH(N52,$J$2:J51,0)),N52,"")) ->  | K52: 21g | L52: Double 1/8" Glass | M52: GRN | N52: Low-E(.1) on surface 3 | O52: 0.46 | P52: 50
E53: =IF(L53&M53&N53='Window Film'!$AP$3&'Window Film'!$AQ$3&'Window Film'!$AT$3,'Ref Tables'!O53,"") ->  | F53: =IF(AND(N53<>"Reflective",OR(L53='Window Film'!$AP$3,'Window Film'!$AP$3="")), 'Ref Tables'!P53,"") -> 51 | H53: =IF(F53="","",IF(ISERROR(MATCH(M53,$H$2:H52,0)),M53,"")) ->  | J53: =IF(F53="","",IF(ISERROR(MATCH(N53,$J$2:J52,0)),N53,"")) ->  | K53: 21h | L53: Double 1/4" Glass | M53: GRN | N53: Low-E(.1) on surface 3 | O53: 0.36 | P53: 51
E54: =IF(L54&M54&N54='Window Film'!$AP$3&'Window Film'!$AQ$3&'Window Film'!$AT$3,'Ref Tables'!O54,"") ->  | F54: =IF(AND(N54<>"Reflective",OR(L54='Window Film'!$AP$3,'Window Film'!$AP$3="")), 'Ref Tables'!P54,"") -> 52 | H54: =IF(F54="","",IF(ISERROR(MATCH(M54,$H$2:H53,0)),M54,"")) ->  | J54: =IF(F54="","",IF(ISERROR(MATCH(N54,$J$2:J53,0)),N54,"")) ->  | K54: 21i | L54: Double 1/8" Glass | M54: GRY | N54: Low-E(.1) on surface 3 | O54: 0.46 | P54: 52
E55: =IF(L55&M55&N55='Window Film'!$AP$3&'Window Film'!$AQ$3&'Window Film'!$AT$3,'Ref Tables'!O55,"") ->  | F55: =IF(AND(N55<>"Reflective",OR(L55='Window Film'!$AP$3,'Window Film'!$AP$3="")), 'Ref Tables'!P55,"") -> 53 | H55: =IF(F55="","",IF(ISERROR(MATCH(M55,$H$2:H54,0)),M55,"")) ->  | J55: =IF(F55="","",IF(ISERROR(MATCH(N55,$J$2:J54,0)),N55,"")) ->  | K55: 21j | L55: Double 1/4" Glass | M55: GRY | N55: Low-E(.1) on surface 3 | O55: 0.34 | P55: 53
E56: =IF(L56&M56&N56='Window Film'!$AP$3&'Window Film'!$AQ$3&'Window Film'!$AT$3,'Ref Tables'!O56,"") ->  | F56: =IF(AND(N56<>"Reflective",OR(L56='Window Film'!$AP$3,'Window Film'!$AP$3="")), 'Ref Tables'!P56,"") -> 54 | H56: =IF(F56="","",IF(ISERROR(MATCH(M56,$H$2:H55,0)),M56,"")) ->  | J56: =IF(F56="","",IF(ISERROR(MATCH(N56,$J$2:J55,0)),N56,"")) ->  | K56: 21k | L56: Double 1/4" Glass | M56: BLUGRN | N56: Low-E(.1) on surface 3 | O56: 0.39 | P56: 54
E57: =IF(L57&M57&N57='Window Film'!$AP$3&'Window Film'!$AQ$3&'Window Film'!$AT$3,'Ref Tables'!O57,"") ->  | F57: =IF(AND(N57<>"Reflective",OR(L57='Window Film'!$AP$3,'Window Film'!$AP$3="")), 'Ref Tables'!P57,"") -> 55 | H57: =IF(F57="","",IF(ISERROR(MATCH(M57,$H$2:H56,0)),M57,"")) ->  | J57: =IF(F57="","",IF(ISERROR(MATCH(N57,$J$2:J56,0)),N57,"")) ->  | K57: 21l | L57: Double 1/4" Glass | M57: HI-P GRN | N57: Low-E(.1) on surface 3 | O57: 0.31 | P57: 55
E58: =IF(L58&M58&N58='Window Film'!$AP$3&'Window Film'!$AQ$3&'Window Film'!$AT$3,'Ref Tables'!O58,"") ->  | F58: =IF(AND(N58<>"Reflective",OR(L58='Window Film'!$AP$3,'Window Film'!$AP$3="")), 'Ref Tables'!P58,"") -> 56 | H58: =IF(F58="","",IF(ISERROR(MATCH(M58,$H$2:H57,0)),M58,"")) ->  | I58: 56 | J58: =IF(F58="","",IF(ISERROR(MATCH(N58,$J$2:J57,0)),N58,"")) -> Low-E(.05) on surface 2 | K58: 25a | L58: Double 1/8" Glass | M58: CLR | N58: Low-E(.05) on surface 2 | O58: 0.41 | P58: 56
E59: =IF(L59&M59&N59='Window Film'!$AP$3&'Window Film'!$AQ$3&'Window Film'!$AT$3,'Ref Tables'!O59,"") ->  | F59: =IF(AND(N59<>"Reflective",OR(L59='Window Film'!$AP$3,'Window Film'!$AP$3="")), 'Ref Tables'!P59,"") -> 57 | H59: =IF(F59="","",IF(ISERROR(MATCH(M59,$H$2:H58,0)),M59,"")) ->  | J59: =IF(F59="","",IF(ISERROR(MATCH(N59,$J$2:J58,0)),N59,"")) ->  | K59: 25b | L59: Double 1/4" Glass | M59: CLR | N59: Low-E(.05) on surface 2 | O59: 0.37 | P59: 57
E60: =IF(L60&M60&N60='Window Film'!$AP$3&'Window Film'!$AQ$3&'Window Film'!$AT$3,'Ref Tables'!O60,"") ->  | F60: =IF(AND(N60<>"Reflective",OR(L60='Window Film'!$AP$3,'Window Film'!$AP$3="")), 'Ref Tables'!P60,"") -> 58 | H60: =IF(F60="","",IF(ISERROR(MATCH(M60,$H$2:H59,0)),M60,"")) ->  | J60: =IF(F60="","",IF(ISERROR(MATCH(N60,$J$2:J59,0)),N60,"")) ->  | K60: 25c | L60: Double 1/4" Glass | M60: BRZ | N60: Low-E(.05) on surface 2 | O60: 0.26 | P60: 58
E61: =IF(L61&M61&N61='Window Film'!$AP$3&'Window Film'!$AQ$3&'Window Film'!$AT$3,'Ref Tables'!O61,"") ->  | F61: =IF(AND(N61<>"Reflective",OR(L61='Window Film'!$AP$3,'Window Film'!$AP$3="")), 'Ref Tables'!P61,"") -> 59 | H61: =IF(F61="","",IF(ISERROR(MATCH(M61,$H$2:H60,0)),M61,"")) ->  | J61: =IF(F61="","",IF(ISERROR(MATCH(N61,$J$2:J60,0)),N61,"")) ->  | K61: 25d | L61: Double 1/4" Glass | M61: GRN | N61: Low-E(.05) on surface 2 | O61: 0.31 | P61: 59
E62: =IF(L62&M62&N62='Window Film'!$AP$3&'Window Film'!$AQ$3&'Window Film'!$AT$3,'Ref Tables'!O62,"") ->  | F62: =IF(AND(N62<>"Reflective",OR(L62='Window Film'!$AP$3,'Window Film'!$AP$3="")), 'Ref Tables'!P62,"") -> 60 | H62: =IF(F62="","",IF(ISERROR(MATCH(M62,$H$2:H61,0)),M62,"")) ->  | J62: =IF(F62="","",IF(ISERROR(MATCH(N62,$J$2:J61,0)),N62,"")) ->  | K62: 25e | L62: Double 1/4" Glass | M62: GRY | N62: Low-E(.05) on surface 2 | O62: 0.24 | P62: 60
E63: =IF(L63&M63&N63='Window Film'!$AP$3&'Window Film'!$AQ$3&'Window Film'!$AT$3,'Ref Tables'!O63,"") ->  | F63: =IF(AND(N63<>"Reflective",OR(L63='Window Film'!$AP$3,'Window Film'!$AP$3="")), 'Ref Tables'!P63,"") -> 61 | G63: 61 | H63: =IF(F63="","",IF(ISERROR(MATCH(M63,$H$2:H62,0)),M63,"")) -> BLU | J63: =IF(F63="","",IF(ISERROR(MATCH(N63,$J$2:J62,0)),N63,"")) ->  | K63: 25f | L63: Double 1/4" Glass | M63: BLU | N63: Low-E(.05) on surface 2 | O63: 0.27 | P63: 61
E64: =IF(L64&M64&N64='Window Film'!$AP$3&'Window Film'!$AQ$3&'Window Film'!$AT$3,'Ref Tables'!O64,"") ->  | F64: =IF(AND(N64<>"Reflective",OR(L64='Window Film'!$AP$3,'Window Film'!$AP$3="")), 'Ref Tables'!P64,"") -> 62 | H64: =IF(F64="","",IF(ISERROR(MATCH(M64,$H$2:H63,0)),M64,"")) ->  | J64: =IF(F64="","",IF(ISERROR(MATCH(N64,$J$2:J63,0)),N64,"")) ->  | K64: 25g | L64: Double 1/4" Glass | M64: HI-P GRN | N64: Low-E(.05) on surface 2 | O64: 0.27 | P64: 62
E65: =IF(L65&M65&N65='Window Film'!$AP$3&'Window Film'!$AQ$3&'Window Film'!$AT$3,'Ref Tables'!O65,"") ->  | F65: =IF(AND(N65<>"Reflective",OR(L65='Window Film'!$AP$3,'Window Film'!$AP$3="")), 'Ref Tables'!P65,"") -> 63 | H65: =IF(F65="","",IF(ISERROR(MATCH(M65,$H$2:H64,0)),M65,"")) ->  | J65: =IF(F65="","",IF(ISERROR(MATCH(N65,$J$2:J64,0)),N65,"")) ->  | K65: 29a | L65: Triple 1/8" Glass | M65: CLR | N65: Uncoated | O65: 0.68 | P65: 63
E66: =IF(L66&M66&N66='Window Film'!$AP$3&'Window Film'!$AQ$3&'Window Film'!$AT$3,'Ref Tables'!O66,"") ->  | F66: =IF(AND(N66<>"Reflective",OR(L66='Window Film'!$AP$3,'Window Film'!$AP$3="")), 'Ref Tables'!P66,"") -> 64 | H66: =IF(F66="","",IF(ISERROR(MATCH(M66,$H$2:H65,0)),M66,"")) ->  | J66: =IF(F66="","",IF(ISERROR(MATCH(N66,$J$2:J65,0)),N66,"")) ->  | K66: 29b | L66: Triple 1/4" Glass | M66: CLR | N66: Uncoated | O66: 0.61 | P66: 64
E67: =IF(L67&M67&N67='Window Film'!$AP$3&'Window Film'!$AQ$3&'Window Film'!$AT$3,'Ref Tables'!O67,"") ->  | F67: =IF(AND(N67<>"Reflective",OR(L67='Window Film'!$AP$3,'Window Film'!$AP$3="")), 'Ref Tables'!P67,"") -> 65 | H67: =IF(F67="","",IF(ISERROR(MATCH(M67,$H$2:H66,0)),M67,"")) ->  | J67: =IF(F67="","",IF(ISERROR(MATCH(N67,$J$2:J66,0)),N67,"")) ->  | K67: 29c | L67: Triple 1/4" Glass | M67: HI-P GRN | N67: Uncoated | O67: 0.32 | P67: 65
E68: =IF(L68&M68&N68='Window Film'!$AP$3&'Window Film'!$AQ$3&'Window Film'!$AT$3,'Ref Tables'!O68,"") ->  | F68: =IF(AND(N68<>"Reflective",OR(L68='Window Film'!$AP$3,'Window Film'!$AP$3="")), 'Ref Tables'!P68,"") -> 66 | G68: =IF(H68="","",F68) ->  | H68: =IF(F68="","",IF(ISERROR(MATCH(M68,$H$2:H67,0)),M68,"")) ->  | I68: =IF(J68="","",F68) ->  | J68: =IF(F68="","",IF(ISERROR(MATCH(N68,$J$2:J67,0)),N68,"")) ->  | K68: 32a | L68: Triple 1/8" Glass | M68: CLR | N68: Low-E(.2) on surface 2 | O68: 0.6 | P68: 66
E69: =IF(L69&M69&N69='Window Film'!$AP$3&'Window Film'!$AQ$3&'Window Film'!$AT$3,'Ref Tables'!O69,"") ->  | F69: =IF(AND(N69<>"Reflective",OR(L69='Window Film'!$AP$3,'Window Film'!$AP$3="")), 'Ref Tables'!P69,"") -> 67 | H69: =IF(F69="","",IF(ISERROR(MATCH(M69,$H$2:H68,0)),M69,"")) ->  | J69: =IF(F69="","",IF(ISERROR(MATCH(N69,$J$2:J68,0)),N69,"")) ->  | K69: 32b | L69: Triple 1/4" Glass | M69: CLR | N69: Low-E(.2) on surface 2 | O69: 0.53 | P69: 67
E70: =IF(L70&M70&N70='Window Film'!$AP$3&'Window Film'!$AQ$3&'Window Film'!$AT$3,'Ref Tables'!O70,"") ->  | F70: =IF(AND(N70<>"Reflective",OR(L70='Window Film'!$AP$3,'Window Film'!$AP$3="")), 'Ref Tables'!P70,"") -> 68 | H70: =IF(F70="","",IF(ISERROR(MATCH(M70,$H$2:H69,0)),M70,"")) ->  | I70: 68 | J70: =IF(F70="","",IF(ISERROR(MATCH(N70,$J$2:J69,0)),N70,"")) -> Low-E(.2) on surface 5 | K70: 32c | L70: Triple 1/8" Glass | M70: CLR | N70: Low-E(.2) on surface 5 | O70: 0.62 | P70: 68
E71: =IF(L71&M71&N71='Window Film'!$AP$3&'Window Film'!$AQ$3&'Window Film'!$AT$3,'Ref Tables'!O71,"") ->  | F71: =IF(AND(N71<>"Reflective",OR(L71='Window Film'!$AP$3,'Window Film'!$AP$3="")), 'Ref Tables'!P71,"") -> 69 | H71: =IF(F71="","",IF(ISERROR(MATCH(M71,$H$2:H70,0)),M71,"")) ->  | J71: =IF(F71="","",IF(ISERROR(MATCH(N71,$J$2:J70,0)),N71,"")) ->  | K71: 32d | L71: Triple 1/4" Glass | M71: CLR | N71: Low-E(.2) on surface 5 | O71: 0.56 | P71: 69
E72: =IF(L72&M72&N72='Window Film'!$AP$3&'Window Film'!$AQ$3&'Window Film'!$AT$3,'Ref Tables'!O72,"") ->  | F72: =IF(AND(N72<>"Reflective",OR(L72='Window Film'!$AP$3,'Window Film'!$AP$3="")), 'Ref Tables'!P72,"") -> 70 | H72: =IF(F72="","",IF(ISERROR(MATCH(M72,$H$2:H71,0)),M72,"")) ->  | I72: 70 | J72: =IF(F72="","",IF(ISERROR(MATCH(N72,$J$2:J71,0)),N72,"")) -> Low-E(.1) on surface 2 and 5 | K72: 40a | L72: Triple 1/8" Glass | M72: CLR | N72: Low-E(.1) on surface 2 and 5 | O72: 0.41 | P72: 70
E73: =IF(L73&M73&N73='Window Film'!$AP$3&'Window Film'!$AQ$3&'Window Film'!$AT$3,'Ref Tables'!O73,"") ->  | F73: =IF(AND(N73<>"Reflective",OR(L73='Window Film'!$AP$3,'Window Film'!$AP$3="")), 'Ref Tables'!P73,"") -> 71 | H73: =IF(F73="","",IF(ISERROR(MATCH(M73,$H$2:H72,0)),M73,"")) ->  | J73: =IF(F73="","",IF(ISERROR(MATCH(N73,$J$2:J72,0)),N73,"")) ->  | K73: 40b | L73: Triple 1/4" Glass | M73: CLR | N73: Low-E(.1) on surface 2 and 5 | O73: 0.36 | P73: 71
E74: =IF(L74&M74&N74='Window Film'!$AP$3&'Window Film'!$AQ$3&'Window Film'!$AT$3,'Ref Tables'!O74,"") ->  | F74: =IF(AND(N74<>"Reflective",OR(L74='Window Film'!$AP$3,'Window Film'!$AP$3="")), 'Ref Tables'!P74,"") -> 72 | H74: =IF(F74="","",IF(ISERROR(MATCH(M74,$H$2:H73,0)),M74,"")) ->  | I74: 72 | J74: =IF(F74="","",IF(ISERROR(MATCH(N74,$J$2:J73,0)),N74,"")) -> Low-E(.05) on surface 2 and 4 | K74: 40c | L74: Triple 1/8" Glass | M74: CLR | N74: Low-E(.05) on surface 2 and 4 | O74: 0.27 | P74: 72
E75: =IF(L75&M75&N75='Window Film'!$AP$3&'Window Film'!$AQ$3&'Window Film'!$AT$3,'Ref Tables'!O75,"") ->  | F75: =IF(AND(N75<>"Reflective",OR(L75='Window Film'!$AP$3,'Window Film'!$AP$3="")), 'Ref Tables'!P75,"") -> 73 | H75: =IF(F75="","",IF(ISERROR(MATCH(M75,$H$2:H74,0)),M75,"")) ->  | J75: =IF(F75="","",IF(ISERROR(MATCH(N75,$J$2:J74,0)),N75,"")) ->  | K75: 40d | L75: Triple 1/4" Glass | M75: CLR | N75: Low-E(.05) on surface 2 and 4 | O75: 0.26 | P75: 73

Sheet Irradiance (hidden)
A1: Solar Irradiance and Average Day Light Hours | D1: Solar Irradiance, Ed (Average Day Hour, SHGC=1.0)
F2: N | I2: NE | L2: E | O2: SE | R2: S | U2: SW | X2: W | AA2: NW | AB2: ADLH
A3: Source: Ashrae 1997 Fundamentals, Section 29, Table 15-Table21 | D3: Morning | E3: Afternoon | F3: Average | G3: Morning | H3: Afternoon | I3: Average | J3: Morning | K3: Afternoon | L3: Average | M3: Morning | N3: Afternoon | O3: Average | P3: Morning | Q3: Afternoon | R3: Average | S3: Morning | T3: Afternoon | U3: Average | V3: Morning | W3: Afternoon | X3: Average | Y3: Morning | Z3: Afternoon | AA3: Average | AD3: day light hours | AE3: heating and cooling degree days | AF3: Weighted irradiant hours
A4: 1 | B4: Summer | C4: St. George, UT (Latitude 37°) | D4: 227 | E4: 227 | F4: =SUM(D4:E4)/12/0.86 -> 43.99224806 | G4: 707 | H4: 174 | I4: =SUM(G4:H4)/12/0.86 -> 85.36821705 | J4: 990 | K4: 175.6 | L4: =SUM(J4:K4)/12/0.86 -> 112.9457364 | M4: 830.7 | N4: 193.6 | O4: =SUM(M4:N4)/12/0.86 -> 99.25387597 | P4: 317.5 | Q4: 317.5 | R4: =SUM(P4:Q4)/12/0.86 -> 61.53100775 | S4: 193.6 | T4: 830.7 | U4: =SUM(S4:T4)/12/0.86 -> 99.25387597 | V4: 175.6 | W4: 990 | X4: =SUM(V4:W4)/12/0.86 -> 112.9457364 | Y4: 174 | Z4: 707 | AA4: =SUM(Y4:Z4)/12/0.86 -> 85.36821705 | AB4: =AF4 -> 1177.385459 | AD4: 2456 | AE4: 2710 | AF4: =AD4*(AE4/(AE15+AE4)) -> 1177.385459
A5: 2 | C5: Price, UT (Latitude 39°) | D5: 229 | E5: 229 | F5: =SUM(D5:E5)/12/0.86 -> 44.37984496 | G5: 709 | H5: 174 | I5: =SUM(G5:H5)/12/0.86 -> 85.5620155 | J5: 992 | K5: 175.9 | L5: =SUM(J5:K5)/12/0.86 -> 113.1686047 | M5: 864.2 | N5: 197.9 | O5: =SUM(M5:N5)/12/0.86 -> 102.9166667 | P5: 344.5 | Q5: 344.5 | R5: =SUM(P5:Q5)/12/0.86 -> 66.76356589 | S5: 197.9 | T5: 864.2 | U5: =SUM(S5:T5)/12/0.86 -> 102.9166667 | V5: 175.9 | W5: 992 | X5: =SUM(V5:W5)/12/0.86 -> 113.1686047 | Y5: 174 | Z5: 709 | AA5: =SUM(Y5:Z5)/12/0.86 -> 85.5620155 | AB5: =AF5 -> 205.9335732 | AD5: 2476 | AE5: 601 | AF5: =AD5*(AE5/(AE16+AE5)) -> 205.9335732
A6: 3 | C6: Salt Lake City, UT (Latitude 40°) | D6: 215 | E6: 215 | F6: 41.66666667 | G6: 666 | H6: 174 | I6: 81.39534884 | J6: 1024 | K6: 176 | L6: 116.2790698 | M6: 881 | N6: 200 | O6: 104.748062 | P6: 358 | Q6: 358 | R6: 69.37984496 | S6: 200 | T6: 881 | U6: 104.748062 | V6: 176 | W6: 1024 | X6: 116.2790698 | Y6: 174 | Z6: 666 | AA6: 81.39534884 | AB6: 441.3780161 | AD6: 2484 | AE6: 1193 | AF6: 441.3780161
A7: 4 | C7: Rock Springs, WY (Latitude 41.5°) | D7: 215 | E7: 215 | F7: 41.66666667 | G7: 662.1 | H7: 173.8 | I7: 80.99806202 | J7: 1031.7 | K7: 175.6 | L7: 116.9864341 | M7: 904.6 | N7: 204.7 | O7: 107.4903101 | P7: 381.4 | Q7: 381.4 | R7: 73.91472868 | S7: 204.7 | T7: 904.6 | U7: 107.4903101 | V7: 175.6 | W7: 1031.7 | X7: 116.9864341 | Y7: 173.8 | Z7: 662.1 | AA7: 80.99806202 | AB7: 80.59259259 | AD7: 2496 | AE7: 272 | AF7: 80.59259259
A8: 5 | C8: Yreka, CA (42°) | D8: 215 | E8: 215 | F8: 41.66666667 | G8: 660.8 | H8: 173.8 | I8: 80.87209302 | J8: 1034.2 | K8: 175.5 | L8: 117.2189922 | M8: 912.5 | N8: 206.2 | O8: 108.4011628 | P8: 389.2 | Q8: 389.2 | R8: 75.42635659 | S8: 206.2 | T8: 912.5 | U8: 108.4011628 | V8: 175.5 | W8: 1034.2 | X8: 117.2189922 | Y8: 173.8 | Z8: 660.8 | AA8: 80.87209302 | AB8: 220.6756069 | AD8: 2500 | AE8: 520 | AF8: 220.6756069
A9: 6 | C9: Crescent City, CA (42°) | D9: 215 | E9: 215 | F9: 41.66666667 | G9: 660.8 | H9: 173.8 | I9: 80.87209302 | J9: 1034.2 | K9: 175.5 | L9: 117.2189922 | M9: 912.5 | N9: 206.2 | O9: 108.4011628 | P9: 389.2 | Q9: 389.2 | R9: 75.42635659 | S9: 206.2 | T9: 912.5 | U9: 108.4011628 | V9: 175.5 | W9: 1034.2 | X9: 117.2189922 | Y9: 173.8 | Z9: 660.8 | AA9: 80.87209302 | AB9: 0.544780998 | AD9: 2500 | AE9: 1 | AF9: 0.544780998
A10: 7 | C10: Pocatello, ID (Latitude 42.5°) | D10: 215 | E10: 215 | F10: 41.66666667 | G10: 659.4 | H10: 173.7 | I10: 80.72674419 | J10: 1036.8 | K10: 175.5 | L10: 117.4709302 | M10: 920.4 | N10: 207.8 | O10: 109.3217054 | P10: 397.1 | Q10: 397.1 | R10: 76.95736434 | S10: 207.8 | T10: 920.4 | U10: 109.3217054 | V10: 175.5 | W10: 1036.8 | X10: 117.4709302 | Y10: 173.7 | Z10: 659.4 | AA10: 80.72674419 | AB10: 140.753421 | AD10: 2504 | AE10: 419 | AF10: 140.753421
A11: 8 | C11: Casper, WY (43°) | D11: 215 | E11: 215 | F11: 41.66666667 | G11: 658.1 | H11: 173.6 | I11: 80.59108527 | J11: 1039.4 | K11: 175.3 | L11: 117.7034884 | M11: 928.2 | N11: 209.4 | O11: 110.2325581 | P11: 404.9 | Q11: 404.9 | R11: 78.46899225 | S11: 209.4 | T11: 928.2 | U11: 110.2325581 | V11: 175.3 | W11: 1039.4 | X11: 117.7034884 | Y11: 173.6 | Z11: 658.1 | AA11: 80.59108527 | AB11: 150.5120921 | AD11: 2508 | AE11: 469 | AF11: 150.5120921
A12: 9 | C12: Worland, WY (44°) | D12: 215 | E12: 215 | F12: 41.66666667 | G12: 655.5 | H12: 175 | I12: 80.4748062 | J12: 1044.5 | K12: 175 | L12: 118.1686047 | M12: 944 | N12: 212.5 | O12: 112.0639535 | P12: 420.5 | Q12: 420.5 | R12: 81.49224806 | S12: 212.5 | T12: 944 | U12: 112.0639535 | V12: 175 | W12: 1044.5 | X12: 118.1686047 | Y12: 175 | Z12: 655.5 | AA12: 80.4748062 | AB12: 209.2567386 | AD12: 2512 | AE12: 683 | AF12: 209.2567386
A13: 10 | C13: Walla Walla, WA (46°) | D13: 215 | E13: 215 | F13: 41.66666667 | G13: 650.2 | H13: 174.5 | I13: 79.9127907 | J13: 1054.8 | K13: 174.5 | L13: 119.1182171 | M13: 975.5 | N13: 218.8 | O13: 115.7267442 | P13: 451.8 | Q13: 451.8 | R13: 87.55813953 | S13: 218.8 | T13: 975.5 | U13: 115.7267442 | V13: 174.5 | W13: 1054.8 | X13: 119.1182171 | Y13: 174.5 | Z13: 650.2 | AA13: 79.9127907 | AB13: 396.8099688 | AD13: 2514 | AE13: 912 | AF13: 396.8099688
A14: 11 | C14: Yakima, WA (46.5°) | D14: 215 | E14: 215 | F14: 41.66666667 | G14: 648.9 | H14: 174.4 | I14: 79.77713178 | J14: 1057.3 | K14: 174.4 | L14: 119.3507752 | M14: 983.4 | N14: 220.3 | O14: 116.6375969 | P14: 459.6 | Q14: 459.6 | R14: 89.06976744 | S14: 220.3 | T14: 983.4 | U14: 116.6375969 | V14: 174.4 | W14: 1057.3 | X14: 119.3507752 | Y14: 174.4 | Z14: 648.9 | AA14: 79.77713178 | AB14: 190.6795151 | AD14: 2514 | AE14: 488 | AF14: 190.6795151
A15: 12 | B15: Winter | C15: =C4 -> St. George, UT (Latitude 37°) | D15: 69.375 | E15: 69.375 | F15: 13.44476744 | G15: 87.4 | H15: 69.4 | I15: 15.19379845 | J15: 488.5 | K15: 69.8 | L15: 54.09883721 | M15: 927.9 | N15: 266 | O15: 115.6879845 | P15: 813 | Q15: 813 | R15: 157.5581395 | S15: 266 | T15: 927.9 | U15: 115.6879845 | V15: 69.8 | W15: 488.5 | X15: 54.09883721 | Y15: 69.4 | Z15: 87.4 | AA15: 15.19379845 | AB15: 1001.130196 | AD15: 1923 | AE15: 2943 | AF15: =AD15*(AE15/(AE4+AE15)) -> 1001.130196
A16: 13 | C16: Price, UT (Latitude 39°) | D16: 65.125 | E16: 65.125 | F16: 12.62112403 | G16: 79.1 | H16: 65.1 | I16: 13.97286822 | J16: 459.5 | K16: 65.2 | L16: 50.84302326 | M16: 900.6 | N16: 268 | O16: 113.2364341 | P16: 803 | Q16: 803 | R16: 155.620155 | S16: 268 | T16: 900.6 | U16: 113.2364341 | V16: 65.2 | W16: 459.5 | X16: 50.84302326 | Y16: 65.1 | Z16: 79.1 | AA16: 13.97286822 | AB16: 1744.723914 | AD16: 1903 | AE16: 6625 | AF16: =AD16*(AE16/(AE5+AE16)) -> 1744.723914
A17: 14 | C17: Salt Lake City, UT (Latitude 40°) | D17: 63 | E17: 63 | F17: 12.20930233 | G17: 75 | H17: 63 | I17: 13.37209302 | J17: 445 | K17: 63 | L17: 49.2248062 | M17: 887 | N17: 269 | O17: 112.0155039 | P17: 798 | Q17: 798 | R17: 154.6511628 | S17: 269 | T17: 887 | U17: 112.0155039 | V17: 63 | W17: 445 | X17: 49.2248062 | Y17: 63 | Z17: 75 | AA17: 13.37209302 | AB17: 1554.333363 | AD17: =(39-37)/(42-37)*(AD22-AD16)+AD16 -> 1890.2 | AE17: 5521 | AF17: 1554.333363
A18: 15 | C18: Rock Springs, WY (Latitude 41.5°) | D18: 59.4 | E18: 59.4 | F18: 11.51162791 | G18: 69.7 | H18: 59.4 | I18: 12.50968992 | J18: 419.7 | K18: 59.4 | L18: 46.4244186 | M18: 854.4 | N18: 266.4 | O18: 108.6046512 | P18: 777 | Q18: 777 | R18: 150.5813953 | S18: 266.4 | T18: 854.4 | U18: 108.6046512 | V18: 59.4 | W18: 419.7 | X18: 46.4244186 | Y18: 59.4 | Z18: 69.7 | AA18: 12.50968992 | AB18: 1822.20038 | AD18: 1883 | AE18: 8152 | AF18: 1822.20038
A19: 16 | C19: Yreka, CA (42°) | D19: 58.2 | E19: 58.2 | F19: 11.27906977 | G19: 68 | H19: 58.2 | I19: 12.22868217 | J19: 411.2 | K19: 58.25 | L19: 45.48934109 | M19: 843.5 | N19: 265.5 | O19: 107.4612403 | P19: 770 | Q19: 770 | R19: 149.2248062 | S19: 265.5 | T19: 843.5 | U19: 107.4612403 | V19: 58.25 | W19: 411.2 | X19: 45.48934109 | Y19: 58.2 | Z19: 68 | AA19: 12.22868217 | AB19: 1713.140214 | AD19: 1879 | AE19: 5371 | AF19: 1713.140214
A20: 17 | C20: Crescent City, CA (42°) | D20: 58.2 | E20: 58.2 | F20: 11.27906977 | G20: 68 | H20: 58.2 | I20: 12.22868217 | J20: 411.2 | K20: 58.3 | L20: 45.49418605 | M20: 843.5 | N20: 265.5 | O20: 107.4612403 | P20: 770 | Q20: 770 | R20: 149.2248062 | S20: 265.5 | T20: 843.5 | U20: 107.4612403 | V20: 58.3 | W20: 411.2 | X20: 45.49418605 | Y20: 58.2 | Z20: 68 | AA20: 12.22868217 | AB20: 1878.590543 | AD20: 1879 | AE20: 4588 | AF20: 1878.590543
A21: 18 | C21: Pocatello, ID (Latitude 42.5°) | D21: 57.1 | E21: 57.1 | F21: 11.06589147 | G21: 66.2 | H21: 57.1 | I21: 11.94767442 | J21: 402.8 | K21: 57.1 | L21: 44.56395349 | M21: 832.6 | N21: 264.6 | O21: 106.3178295 | P21: 763 | Q21: 763 | R21: 147.8682171 | S21: 264.6 | T21: 832.6 | U21: 106.3178295 | V21: 57.1 | W21: 402.8 | X21: 44.56395349 | Y21: 57.1 | Z21: 66.2 | AA21: 11.94767442 | AB21: 1769.603569 | AD21: 1875 | AE21: 7035 | AF21: 1769.603569
A22: 19 | C22: Casper, WY (43°) | D22: 55.9 | E22: 55.9 | F22: 10.83333333 | G22: 64.5 | H22: 55.9 | I22: 11.66666667 | J22: 394.4 | K22: 55.9 | L22: 43.63372093 | M22: 821.8 | N22: 263.8 | O22: 105.1937984 | P22: 756 | Q22: 756 | R22: 146.5116279 | S22: 263.8 | T22: 821.8 | U22: 105.1937984 | V22: 55.9 | W22: 394.4 | X22: 43.63372093 | Y22: 55.9 | Z22: 64.5 | AA22: 11.66666667 | AB22: 1758.716059 | AD22: 1871 | AE22: 7346 | AF22: 1758.716059
A23: 20 | C23: Worland, WY (44°) | D23: 53.5 | E23: 53.5 | F23: 10.36821705 | G23: 61 | H23: 53.5 | I23: 11.09496124 | J23: 377.5 | K23: 53.5 | L23: 41.76356589 | M23: 800 | N23: 262 | O23: 102.9069767 | P23: 742 | Q23: 742 | R23: 143.7984496 | S23: 262 | T23: 800 | U23: 102.9069767 | V23: 53.5 | W23: 377.5 | X23: 41.76356589 | Y23: 53.5 | Z23: 61 | AA23: 11.09496124 | AB23: 1711.473594 | AD23: 1867 | AE23: 7516 | AF23: 1711.473594
A24: 21 | C24: Walla Walla, WA (46°) | D24: 48.8 | E24: 48.8 | F24: 9.457364341 | G24: 54 | H24: 48.8 | I24: 9.96124031 | J24: 343.8 | K24: 48.8 | L24: 38.04263566 | M24: 756.5 | N24: 258.5 | O24: 98.35271318 | P24: 714 | Q24: 714 | R24: 138.372093 | S24: 258.5 | T24: 756.5 | U24: 98.35271318 | V24: 48.8 | W24: 343.8 | X24: 38.04263566 | Y24: 48.8 | Z24: 54 | AA24: 9.96124031 | AB24: 1570.628245 | AD24: 1865 | AE24: 4866 | AF24: 1570.628245
A25: 22 | C25: Yakima, WA (46.5°) | D25: 47.5 | E25: 47.5 | F25: 9.205426357 | G25: 52.2 | H25: 47.6 | I25: 9.670542636 | J25: 335.3 | K25: 47.6 | L25: 37.10271318 | M25: 745.6 | N25: 257.6 | O25: 97.20930233 | P25: 707 | Q25: 707 | R25: 137.0155039 | S25: 257.6 | T25: 745.6 | U25: 97.20930233 | V25: 47.6 | W25: 335.3 | X25: 37.10271318 | Y25: 47.6 | Z25: 52.2 | AA25: 9.670542636 | AB25: 1723.545228 | AD25: 1865 | AE25: 5946 | AF25: 1723.545228

Sheet Help
A1: Window Film Calculator Help
A4: Note: This window film calculator is provided for the express use of wattsmart Business approved EEA Participants only. Any other use of this window film calculator tool is unauthorized unless specifically approved otherwise by the wattsmart Business Program Administrator or Rocky Mountain Power/Pacific Power
A6: When to Use this Window Film Calculator
A8: This window film calculator is designed to be used for obtaining basic savings and incentive information for installation of window film
A10: How to Help Customers Obtain Incentives for window film
A12: 1. Verify that the facility at which the window film is installed is served by Rocky Mountain Power /Pacific Power under one of the rate schedules eligible for the wattsmart Business program.
A13: 2. Obtain film performance specifications.
B14: PLEASE NOTE: You will need the following data to obtain correct savings and incentive calculations: Glazing type, Glass Tint Color, and Coating
A15: 3. Fill out the blue cells in the window film calculator with all the requested information.
A16: 4. Retain a copy of the window film calculator for your files. You will need this later when applying for incentives.
A17: 5. Help the customer fill out and submit an application for incentives. Attach a copy of the window film calculator to the application.
A19: Applications can be found online as indicated below:
B20: For ID, UT, & WY: | D20: rockymountainpower.net/wattsmart
B21: For CA & WA: | D21: pacificpower.net/wattsmart
A23: Rate Schedule
A25: The customer utility rate schedule is necessary to calculate accurate estimates. Therefore, obtain the correct rate schedule from the customer's current Rocky Mountain Power/Pacific Power bill or call your Coordinator at (866) 415-9800 and request it.
A27: Incentive Levels
A29: Incentive levels vary depending on the utility service territory in which the facility is located. Below is a summary of eligibility and available incentives by state:
A31: This tool calculates incentives in accordance with tariffs effective as listed below.
B32: State | C32: Tariff Effective Date | E32: Incentive Rate
B33: California | C33: =VLOOKUP(LEFT(B33,2),'Window Film'!$AF$23:$AG$27,2,FALSE) -> May 1, 2015 | E33: $0.15/kWh
B34: Idaho | C34: =VLOOKUP(LEFT(B34,2),'Window Film'!$AF$23:$AG$27,2,FALSE) -> November 13, 2014 | E34: $0.15/kWh
B35: Utah | C35: =VLOOKUP(LEFT(B35,2),'Window Film'!$AF$23:$AG$27,2,FALSE) -> July 1, 2013 | E35: $0.15/kWh
B36: Wyoming | C36: =VLOOKUP(LEFT(B36,2),'Window Film'!$AF$23:$AG$27,2,FALSE) -> December 1, 2014 | E36: $0.15/kWh
B37: Washington | C37: =VLOOKUP(LEFT(B37,2),'Window Film'!$AF$23:$AG$27,2,FALSE) -> January 1, 2014 | E37: $0.15/kWh
A39: Reflective window films must be professionally installed and the customer/contractor will be required to submit the square footage of film installed, performance characteristics of the existing window, applied window film specifications, and the orientation of the window (i.e., North, East, South or West). Incentives for window films are calculated based on square footage, window orientation and other system parameters at the $/kWh annual energy savings (as found in the table above) and are subject to approval by Rocky Mountain Power/Pacific Power. Window films must be installed in a facility that is cooled with mechanical systems, and must meet all other program terms and conditions.
A42: Additional Help
A44: Contact your project Coordinator at (866) 415-9800 with any questions you may have.

Sheet Change Log (hidden)
A1: Date | B1: Change Description | C1: Name | D1: Previous Revision # | E1: New Revision #
A2: 2012-08-16 | B2: updated RMP rates (ID, UT, WY) | C2: Troy Williams | D2: 071412 | E2: 071412.2
A3: 2013-12-27 | B3: Updated for new WA tariff incentive rate ($0.15/kWh for new tariff, $0.12/kWh A4 for the previous tariff) | C3: Jake DeMann | D3: 070113.2 | E3: 010114.1
A4: 2014-01-07 | B4: Updated rates, using Rates for Software 1-1-2014 | C4: Jake DeMann | D4: 10114.1 | E4: 10114.1
A5: 2014-10-15 | B5: Changes: - ID incentive rate changed to $0.15/kWh (previously $0.12/kWh) - Rate schedules updated to match Rates for Software 6-8-14 - ID tariff date updated - Version number updated | C5: Jake DeMann | D5: 010114.1 | E5: 110114.1
A6: 2014-11-24 | B6: - Version # revised, beta version for testing, release version to be 120114.1 - Wyoming tariff effective date revised to 12/01/2014 - Wyoming incentive rate changed to $0.15/kWh (Only CA remains at $0.12/kWh) - Wyoming tariff messaging revised to schedule 140 | C6: Jake DeMann | D6: 110114.1 | E6: beta 120114
A7: 2014-12-15 | B7: Finalized tool, version number | C7: Jake DeMann | D7: beta 120114 | E7: 120114.1
A8: 2015-04-10 | B8: - Version # revised, beta version for testing, release version to be 050115.1 - CA tariff effective date revised to 5/01/2015 - CA incentive rate changed to $0.15/kWh - CA tariff messaging revised to schedule 140 | D8: 120114.1 | E8: beta 050115
A9: 2015-05-22 | B9: Made corrections as noted in QC Review: -Corrected CA effective Date -Added functionality to inform user when the dates do not align with effective date -Corrected the CA incentive listed in the Help tab -Updated Rates to align with Rates for Software 5-1-2015 -Finalized the version number | C9: Joe Larsen | D9: beta 050115 | E9: 50115.1
A10: 2016-07-07 | B10: Updated rates, using Rates for Software 6-17-2016 | C10: Jake DeMann | D10: 50115.1 | E10: 071116.1
